Cogmind - Beta 16.1 @@@ ROGUE MODE // 2026.04.20 @ 04:37:29 Player: spider Result: Escaped singularity! Performance ------------- Evolutions (9) 4500 Regions Visited (35) 7000 Robots Destroyed (400) 2000 Value Destroyed (18773) 18773 Prototype IDs (369) 7380 Alien Tech Used (3) 600 Bonus (53908) 53908 TOTAL SCORE: 94161 Bonus ------- High Alert Combat Kills 2878 Follower Combat Kills 2930 Hunted by Unchained 1000 Forged Quantum Companion 2000 Network Hubs Disabled 200 Registered with UFD 300 Met Optimus in HQ 500 Met Warlord at Base 500 MAIN.C Attacked Warlord 500 Warlord Defense Kills 1908 Built Enhanced Grunts 300 A7 Reached Mainframe 300 Met R17 at Cetus 500 Met R17 at Research 2000 Met Optimus at Protoforge 1000 Destroyed MAIN.C Guards 500 Met MAIN.C 5000 Destroyed MAIN.C Shell 5000 Destroyed MAIN.C 10000 Met Architect 300 Destroyed A8 300 Destroyed A6 400 Destroyed A5 500 Destroyed Architect 15000 Win 3000 Friendly Fire -2908 Cogmind --------- Core Integrity 788/1600 Matter 267/300 Energy 279/340 System Corruption 3% Temperature Cool (27) Movement Hovering (38) Location Near Former Tau Ceti IV Parts ------- > --- POWER (3) -------- Concept Zero-point Core Concept Zero-point Core > --- PROPULSION (7) --- Combat Antigrav System Experimental Antigrav System Concept Combat Aerolev Unit Concept Combat Aerolev Unit Concept Gyrokinetic System Concept Gyrokinetic System Concept Gyrokinetic System > --- UTILITY (12) ----- Concept Antigrav Storage Unit Experimental Melee Analysis Suite Concept Melee Reflex Suite Concept Weapon Articulator Experimental Core Analyzer Improved Armor Integrity Analyzer Microactuators Experimental Powered Armor AEGIS Remote Shield Concept Impact Drone Bay (6/6) > --- WEAPON (3) ------- Concept Deflector Sword Superquantum Companion Plasma Lance > --- INVENTORY (25) --- Experimental Antimatter Reactor Zero-point Reactor Combat Antigrav System Antigrav Array Gravjet Array Gravjet Array Concept Chromion Battery (800) Concept Chromion Battery (800) Concept NT7 Matterbank (484) Experimental Actuator Array Centrium Medium Armor Plating Centrium Linked Plating Experimental Powered Armor Concept RG22 Armor AEGIS Remote Shield AEGIS Remote Shield Concept Impact Drone Bay (3/6) Cooled Proton Cannon Concept Plasma Driver Concept Rapid Grenade Launcher Peak State ------------ > --- POWER ------------ Experimental Antimatter Reactor Concept Zero-point Core Concept Zero-point Core > --- PROPULSION ------- Experimental Antigrav System Gravjet Array Concept Combat Aerolev Unit Concept Combat Aerolev Unit Concept Gyrokinetic System Concept Gyrokinetic System > --- UTILITY ---------- Concept Antigrav Storage Unit Concept Chromion Battery Experimental Melee Analysis Suite Concept Melee Reflex Suite Concept Projectile Intercept Suite Concept Weapon Articulator Experimental Core Analyzer Experimental Reaction Control System Concept RG22 Armor Concept RG22 Armor Improved Shock Absorption System Experimental Force Field > --- WEAPON ----------- Concept EMP Blanket Launcher Concept Deflector Sword Superquantum Companion > --- INVENTORY -------- Light Quantum Reactor Experimental Antimatter Reactor Zero-point Reactor Concept Zero-point Core Gravjet Array Gravjet Array Concept Combat Aerolev Unit Concept Gyrokinetic System Concept Gyrokinetic System Concept Chromion Battery Concept NT7 Matterbank Femtoactuators Concept Cloak Mesh AEGIS Remote Shield AEGIS Remote Shield AEGIS Remote Shield Concept Matter Streamer Concept Impact Drone Bay Concept Impact Drone Bay Transdimensional Reconstructor Concept Plasma Driver Concept Rapid Grenade Launcher Concept Tactical Fusion Warhead [Rating: 301] Favorites ----------- Power Concept Zero-point Core Engine Heavy Ion Engine Power Core Concept Zero-point Core Reactor Experimental Antimatter Reactor Propulsion Light Treads Treads Light Treads Hover Unit Concept Gyrokinetic System Flight Unit Cooled Impulse Thruster Utility Improved Hacking Suite Device Improved Heat Sink Storage Huge Storage Unit Processor Experimental Core Analyzer Hackware Improved Hacking Suite Protection Concept RG22 Armor Weapon Advanced Beam Cannon Energy Gun Small Laser Energy Cannon Advanced Beam Cannon Ballistic Gun Light Assault Rifle Launcher Long-range Missile Launcher Special Weapon CPS Tube Impact Weapon Gravity Flail Slashing Weapon Superquantum Companion Piercing Weapon Plasma Lance Special Melee Weapon Improved Datajack Build | -11 -10 -10 -9 -9 -9 -8 -8 -8 -8 -8 -6 -6 -6 -5 -5 -5 -5 -5 -5 -5 -4 -4 -4 -4 -4 -4 -3 -3 -3 -2 -2 -2 -1 -1 -1 ------- Run | Yrd Mat Min Mat Min Exi Min Mat Sto Rec Scr Fac Was Fac Fac Was Fac Ext Cet Arc Hub Fac Was Fac Upp Upp War Pro Res Tes Res Qua Frg Acc Com Ac0 Slots Evolved 18 | . . . 2 . . . 2 . . . 4 . . 2 . . . . . . 2 . . . . . . 2 . 2 . . 2 . . Power 2 | . . . . . . . . . . . 1 . . . . . . . . . . . . . . . . . . 1 . . . . . Propulsion 5 | . . . 1 . . . 1 . . . 1 . . 1 . . . . . . . . . . . . . . . 1 . . . . . Utility 10 | . . . 1 . . . 1 . . . 2 . . 1 . . . . . . 2 . . . . . . 2 . . . . 1 . . Weapon 1 | . . . . . . . . . . . . . . . . . . . . . . . . . . . . . . . . . 1 . . Parts Attached 344 | 6 5 3 23 2 . 4 3 11 3 11 13 5 8 13 2 10 5 5 3 3 14 . 6 3 6 13 1 16 8 7 4 90 3 26 9 Power 43 | 1 . . 3 . . 1 . 1 . . 3 . 2 4 . 2 1 . 1 . 1 . 1 2 2 3 . . 1 . 1 10 . 3 . Engine 16 | 1 . . 1 . . 1 . 1 . . 1 . 2 4 . 1 1 . 1 . . . 1 1 . . . . . . . . . . . Core 10 | . . . 2 . . . . . . . 2 . . . . . . . . . . . . . 2 1 . . . . . 2 . 1 . Reactor 17 | . . . . . . . . . . . . . . . . 1 . . . . 1 . . 1 . 2 . . 1 . 1 8 . 2 . Propulsion 83 | 2 . . 8 1 . . 2 3 3 4 4 2 2 3 2 3 2 . . 2 4 . . . 2 3 . 4 1 . 3 18 . 2 3 Treads 19 | 2 . . 8 1 . . 2 2 3 1 . . . . . . . . . . . . . . . . . . . . . . . . . Leg . | . . . . . . . . . . . . . . . . . . . . . . . . . . . . . . . . . . . . Wheel . | . . . . . . . . . . . . . . . . . . . . . . . . . . . . . . . . . . . . Hover 22 | . . . . . . . . 1 . . 2 1 . . . . . . . . . . . . . . . . . . . 13 . 2 3 Flight 42 | . . . . . . . . . . 3 2 1 2 3 2 3 2 . . 2 4 . . . 2 3 . 4 1 . 3 5 . . . Utility 159 | 1 1 1 7 1 . 1 1 3 . 5 5 2 1 6 . 4 1 4 2 . 9 . 5 1 2 6 1 10 5 5 . 46 3 15 5 Device 80 | . . 1 4 . . 1 1 1 . 2 1 2 . 1 . . . 1 2 . 2 . 2 1 2 4 1 5 2 3 . 23 2 12 4 Storage 10 | 1 1 . . . . . . . . 1 . . . . . . . . . . 1 . 1 . . . . . 1 . . 4 . . . Processor 21 | . . . . . . . . . . . 3 . . 2 . . . . . . 1 . 1 . . 1 . 2 1 . . 8 1 1 . Hackware 15 | . . . . . . . . . . . 1 . 1 2 . 2 . 1 . . 3 . 1 . . 1 . 2 . 1 . . . . . Protection 33 | . . . 3 1 . . . 2 . 2 . . . 1 . 2 1 2 . . 2 . . . . . . 1 1 1 . 11 . 2 1 Artifact . | . . . . . . . . . . . . . . . . . . . . . . . . . . . . . . . . . . . . Weapon 59 | 2 4 2 5 . . 2 . 4 . 2 1 1 3 . . 1 1 1 . 1 . . . . . 1 . 2 1 2 . 16 . 6 1 Energy Gun 6 | . 1 . . . . . . . . . . . . . . . . . . . . . . . . . . . . 1 . 2 . 2 . Energy Cannon 14 | . . 1 2 . . 1 . 2 . . . . 1 . . . . . . . . . . . . 1 . 2 . . . 2 . 1 1 Ballistic Gun 7 | 2 1 . 3 . . . . . . . . . . . . . . . . . . . . . . . . . . . . 1 . . . Ballistic Cannon . | . . . . . . . . . . . . . . . . . . . . . . . . . . . . . . . . . . . . Launcher 11 | . 1 1 . . . 1 . 2 . . . 1 . . . . . . . 1 . . . . . . . . 1 1 . 1 . 1 . Special Weapon 8 | . 1 . . . . . . . . . 1 . 1 . . 1 1 1 . . . . . . . . . . . . . 2 . . . Impact Weapon 2 | . . . . . . . . . . . . . . . . . . . . . . . . . . . . . . . . 1 . 1 . Slashing Weapon 6 | . . . . . . . . . . 1 . . . . . . . . . . . . . . . . . . . . . 5 . . . Piercing Weapon 3 | . . . . . . . . . . . . . . . . . . . . . . . . . . . . . . . . 2 . 1 . Special Melee Weapon 2 | . . . . . . . . . . 1 . . 1 . . . . . . . . . . . . . . . . . . . . . . Unidentified Prototypes 60 | . . . 1 . . . . 3 . 2 . 2 1 . . 3 . 2 . . . . 1 . . 9 . 1 4 1 1 27 . 2 . Corrupted Parts 10 | . . . . . . . . . . . . . 1 . 1 . . . . . . . . . . . . . . . . 1 . 6 1 System Corruption 58 | . . . . . . . . . . . . . 3 . 3 . . . . . . . . . . . . . . . . 4 . 47 1 Parts Lost 66 | . . 1 6 1 . 3 . . 2 . 2 . 6 5 . . 2 . 1 3 2 . 5 1 1 . 1 2 2 . . 11 . 2 7 Power 13 | . . 1 1 . . 1 . . . . . . 2 1 . . 1 . . . . . 1 . . . . . . . . 3 . . 2 Propulsion 20 | . . . 1 . . . . . 1 . 1 . 3 2 . . 1 . 1 2 . . 2 1 . . . . . . . 4 . . 1 Utility 27 | . . . 4 1 . 1 . . 1 . . . . 2 . . . . . . 2 . 2 . 1 . 1 2 1 . . 4 . 1 4 Weapon 6 | . . . . . . 1 . . . . 1 . 1 . . . . . . 1 . . . . . . . . 1 . . . . 1 . Highest Loss Streak 6 | . . 1 2 1 . 2 . . 2 . 2 . 3 3 . . 1 . 1 3 1 . 2 1 1 . 1 1 1 . . 6 . 1 5 To Critical Strikes 1 | . . . . . . . . . . . . . . . . . . . . . . . . . . . . . . . . . . . 1 Average Backups 17 | 4 12 20 24 24 24 22 21 23 24 23 5 5 4 5 5 4 5 5 4 4 7 10 9 7 4 5 5 4 4 4 5 11 23 22 22 Power 1 | . 1 1 . . . . . . 1 . . . . . . . 1 . . 1 1 1 . 1 1 1 1 1 1 . . 1 2 2 2 Propulsion 3 | 1 3 5 6 6 6 6 5 4 3 2 . . . . 1 1 . 1 . . 1 2 . . . . 1 . . . . 2 5 5 5 Utility 7 | . 3 6 7 7 8 7 7 10 13 15 3 2 1 1 2 1 1 1 2 1 4 6 6 4 2 2 2 1 2 2 2 5 10 11 11 Weapon 4 | 1 5 7 9 10 10 9 9 7 6 2 1 1 2 2 2 1 . 1 1 . 1 1 1 1 . 1 1 1 1 1 1 1 3 3 2 Tool/Special . | . . . . . . . . . . . . . . . . . . . . . . . . . . . . . . . . . . . . Unused Backups 91 | . . . 14 . . . . 7 4 13 . . 1 2 . 3 . . 1 . 1 . . 1 . . . 3 . 1 1 26 . 5 8 Power 14 | . . . 1 . . . . . . 1 . . 1 1 . 2 . . . . . . . . . . . . . . . 6 . 1 1 Propulsion 16 | . . . 5 . . . . 3 . . . . . . . . . . . . . . . . . . . 1 . . 1 3 . . 3 Utility 41 | . . . 3 . . . . 2 1 9 . . . 1 . . . . 1 . 1 . . . . . . 2 . 1 . 13 . 3 4 Weapon 19 | . . . 5 . . . . 2 3 2 . . . . . 1 . . . . . . . 1 . . . . . . . 4 . 1 . Tool/Special 1 | . . . . . . . . . . 1 . . . . . . . . . . . . . . . . . . . . . . . . . Average Slot Usage (%) 95 | . 91 93 95 99 100 99 99 99 99 95 80 98 92 79 94 98 99 100 98 99 96 100 94 80 82 96 93 95 99 94 100 94 95 90 91 Engine 3 | . 14 9 . . . 5 9 9 9 8 2 9 10 4 11 10 10 9 5 5 . . 2 5 5 5 . . . . . . . . . Core 4 | . . . 9 11 11 4 . . . . 1 1 . . . . . . . . . . . . . 1 5 4 3 . 4 2 8 11 11 Reactor 2 | . . . . . . . . . . . . . . . . . . 1 5 5 9 10 7 . . 1 5 4 4 8 8 9 4 . . Treads 11 | . 27 28 32 33 33 33 36 36 35 32 . . . . . . . . . . . . . . . . . . . . . . . . . Hover 9 | . . . . . . . . . . . 4 5 6 5 . . . . . . . . . . . . . . . . . 15 24 24 24 Flight 8 | . . . . . . . . . . 2 22 26 24 20 35 34 34 35 35 35 31 31 30 23 24 28 26 24 28 29 30 13 . . . Device 12 | . . 12 14 11 11 16 26 19 14 17 14 13 13 9 11 6 6 11 12 11 12 10 8 7 9 10 10 18 18 17 17 12 8 18 18 Storage 5 | . 20 14 11 11 11 11 9 9 9 8 . . . . . . . . . . 3 5 5 3 . . . . . . . 1 4 4 4 Processor 8 | . . . . . . . . . . . 9 13 13 11 11 11 11 11 11 11 10 10 11 10 10 10 9 10 14 13 13 13 15 15 16 Hackware 5 | . . . . . . . . . . . 4 6 6 8 11 14 15 11 11 11 11 15 16 21 21 21 21 17 11 8 8 8 8 . . Protection 7 | . . . 4 10 11 5 . 7 11 8 6 6 6 7 5 5 5 5 2 5 6 5 4 4 5 4 5 4 6 8 8 8 12 5 4 Energy Cannon 5 | . . 8 16 21 22 21 17 17 18 13 . . . . . . . . . . . . . . . . . . . . . . . . . Ballistic Gun 1 | . 17 13 4 . . . . . . . . . . . . . . . . . . . . . . . . . . . . . . . . Special Weapon 1 | . . . . . . . . . . . 1 6 1 2 . . 4 5 5 4 3 5 1 . . . . . . . . . 3 . . Slashing Weapon 4 | . . . . . . . . . . 2 6 6 6 5 5 5 5 5 5 5 5 5 5 5 5 4 5 4 4 4 4 5 8 7 7 Peak Build Rating 301 | 6 8 12 24 25 24 24 24 29 31 36 43 62 62 67 69 81 79 94 99 99 115 109 110 89 92 127 123 141 146 161 172 277 293 301 285 Average Rating 139 | 5 7 10 18 24 24 22 23 25 27 31 37 53 57 58 63 71 74 82 95 98 107 109 100 83 86 110 122 133 140 153 167 215 282 285 279 On Entrance 86 | . 6 7 11 22 24 24 21 24 26 31 22 43 56 58 65 69 76 73 94 98 96 109 109 87 82 89 123 118 138 138 159 168 272 281 281 Avg Prop Armor Cover (%) 4 | . . . . . . . . . . . 7 4 5 6 3 2 1 . 2 . . . . . . . . . . . . 4 . . . Naked Turns 2 | . . . . . . . . . . 2 . . . . . . . . . . . . . . . . . . . . . . . . . Heaviest Build 135 | 13 93 91 96 101 101 101 95 107 105 103 16 16 15 19 15 19 29 36 37 35 51 46 50 27 32 43 32 35 39 46 50 107 111 124 135 Greatest Support 116 | 40 40 40 69 66 63 63 83 83 84 84 16 16 20 30 33 41 35 51 51 55 55 51 53 28 29 38 38 40 49 60 61 116 112 112 114 Greatest Overweight (x) 2 | . 2 2 2 1 1 1 1 1 1 1 1 . . . . . 1 . . . . . . 1 1 1 . . . . . 1 . 1 1 Average Overweight (x) . | . 1 2 1 1 1 1 1 1 1 . . . . . . . . . . . . . . . . . . . . . . . . . . Largest Inventory Capacity 25 | 8 25 25 25 25 25 25 25 25 25 25 5 5 5 5 5 5 5 5 5 5 10 10 10 10 5 5 5 5 5 5 5 25 25 25 25 Average Capacity 19 | 7 23 25 25 25 25 25 25 25 25 23 5 5 5 5 5 5 5 5 5 5 8 10 10 8 5 5 5 5 5 5 5 14 25 25 25 Most Carried 25 | 7 17 24 25 25 25 25 25 25 25 25 5 5 5 5 5 5 5 5 5 5 10 10 10 10 5 5 5 5 5 5 5 25 25 25 25 Average Carried 18 | 4 12 20 24 24 25 23 23 24 24 23 4 4 4 4 5 4 4 4 4 4 7 10 9 7 4 4 5 4 4 4 4 12 24 24 24 Final Capacity 25 | 8 25 25 25 25 25 25 25 25 25 5 5 5 5 5 5 5 5 5 5 5 10 10 10 5 5 5 5 5 5 5 5 25 25 25 25 Final Carried 25 | 7 17 24 25 25 25 23 25 25 25 5 5 5 5 5 5 5 5 5 5 4 10 10 10 5 5 5 5 5 5 5 5 25 25 25 23 Class Distribution -------------------- 28% | Scavenger-Gladiator 21% | Mutant 12% | Scavenger-Mutant 8% | Hacker-Scout 7% | Commander-Mutant 6% | Scavenger-Scout 4% | Hacker-Sprinter Dominant Class ---------------- Mutant | -10/Materials Mutant | -10/Mines Mutant | -9/Materials Mutant | -9/Mines Mutant | -9/Exiles Scavenger-Mutant | -8/Mines Scavenger-Mutant | -8/Materials Scavenger-Mutant | -8/Storage Commander-Mutant | -8/Recycling Commander-Mutant | -8/Scraptown Scavenger-Sprinter | -6/Factory Sprinter | -6/Waste Sprinter | -6/Factory Scavenger-Sprinter | -5/Factory Hacker-Ninja | -5/Waste Hacker-Scout | -5/Factory Commander-Scout | -5/Extension Commander-Ninja | -5/Cetus Commander-Sprinter | -5/Archives Commander-Scout | -5/Hub_04(d) Hacker-Scout | -4/Factory Hacker-Scout | -4/Waste Hacker-Scout | -4/Factory Hacker-Scout | -4/Upper Caves Hacker-Sprinter | -4/Upper Caves Hacker-Sprinter | -4/Warlord Hacker-Sprinter | -3/Proximity Caves Hacker-Sprinter | -3/Research Hacker-Ninja | -3/Testing Hacker-Ninja | -2/Research Hacker-Scout | -2/Quarantine Scavenger-Scout | -2/Protoforge Scavenger-Gladiator | -1/Access Scavenger-Gladiator | -1/Command Scavenger-Gladiator | -1/Access_0 Resources | -11 -10 -10 -9 -9 -9 -8 -8 -8 -8 -8 -6 -6 -6 -5 -5 -5 -5 -5 -5 -5 -4 -4 -4 -4 -4 -4 -3 -3 -3 -2 -2 -2 -1 -1 -1 ----------- Run | Yrd Mat Min Mat Min Exi Min Mat Sto Rec Scr Fac Was Fac Fac Was Fac Ext Cet Arc Hub Fac Was Fac Upp Upp War Pro Res Tes Res Qua Frg Acc Com Ac0 Matter Collected 12154 | 336 135 279 505 51 . 146 61 305 40 160 144 180 89 129 . 59 764 201 73 . 156 . 185 163 137 874 154 301 116 167 112 4151 68 1245 668 Remotely 550 | . . . . . . . . . . . . . . . . . . . . . . . . . . . . . . . . 476 . 74 . Salvage Created 17559 | 263 303 484 1455 313 . 266 367 1245 483 . 610 129 77 189 . 84 278 56 292 13 152 . 409 328 145 399 137 513 196 167 379 3192 169 3815 651 Parts 921 | 23 26 23 86 20 . 20 20 69 26 . 39 5 7 17 . 6 18 4 27 9 8 . 36 3 11 6 5 31 18 5 20 134 2 180 17 Haulers Intercepted 15 | . 2 . 5 . . . . 6 . . . . . 1 . . . . . . . . . . . . . 1 . . . . . . . Recyclers Shooed 6 | . 2 . . . . . . . . . 2 . . . . . 1 . . . . . . . . . . . . 1 . . . . . Parts Field Recycled . | . . . . . . . . . . . . . . . . . . . . . . . . . . . . . . . . . . . . Retrieved Matter . | . . . . . . . . . . . . . . . . . . . . . . . . . . . . . . . . . . . . Parts Self-Destructed 9 | . . . . . . . . . . . . . . . . . . . . . . . . 1 3 . 5 . . . . . . . . Prevented . | . . . . . . . . . . . . . . . . . . . . . . . . . . . . . . . . . . . . Parts Restored 14 | . . . . . . . . . . . . . . . . . . . . . . . . . . . . . . . . 14 . . . Faulty 14 | . . . . . . . . . . . . . . . . . . . . . . . . . . . . . . . . 14 . . . Kills | -11 -10 -10 -9 -9 -9 -8 -8 -8 -8 -8 -6 -6 -6 -5 -5 -5 -5 -5 -5 -5 -4 -4 -4 -4 -4 -4 -3 -3 -3 -2 -2 -2 -1 -1 -1 ------- Run | Yrd Mat Min Mat Min Exi Min Mat Sto Rec Scr Fac Was Fac Fac Was Fac Ext Cet Arc Hub Fac Was Fac Upp Upp War Pro Res Tes Res Qua Frg Acc Com Ac0 Combat Hostiles Destroyed 278 | . 11 15 28 9 . 9 9 19 7 . 3 . 1 . . . 6 . . 1 . . 4 1 8 14 10 3 5 . 3 63 . 32 17 Melee 50 | . . . . . . . . . . . 1 . 1 . . . 3 . . . . . 1 1 1 . . . . . 1 25 . 13 3 Guns 18 | . 8 5 2 1 . . . . . . . . . . . . . . . . . . . . . . . . . . . 2 . . . Cannons 57 | . . 4 13 7 . 4 2 15 7 . . . . . . . . . . . . . . . . . . . . . 2 3 . . . AOE 122 | . 3 6 12 . . 5 7 2 . . 2 . . . . . 3 . . 1 . . 3 . 7 14 10 3 5 . . 22 . 5 12 Classes Destroyed 30 | 3 5 1 2 . . 1 . . 2 . 1 1 . 1 . . . . . 1 . . . . 2 1 1 . . . . 7 . 1 . Worker 32 | 2 . . 3 . . . 1 4 . . 2 . 2 3 . 2 . . . . . . 7 . . . . 1 1 . . . . 4 . Builder 10 | . 1 . 1 . . 1 . 1 . . 2 . . 1 . . . . . 1 . . 1 . . . . . 1 . . . . . . Tunneler 16 | 6 . 1 . 1 . 2 . . . . 2 . . . . . . . . 1 . . 2 . . . . 1 . . . . . . . Hauler 15 | . 2 . 5 . . . . 6 . . . . . 1 . . . . . . . . . . . . . 1 . . . . . . . Recycler 22 | 1 . . 2 . . 1 1 3 2 . 3 . . . . . . . . . 1 . 1 . . . . 2 1 1 1 . 1 1 . Mechanic 2 | . . . . . . . . . . . 1 . . . . 1 . . . . . . . . . . . . . . . . . . . Operator 10 | . . . . . . . . . . . . . . 1 . . 1 . 8 . . . . . . . . . . . . . . . . Drone 15 | . . . . . . . . . . . . . . . . . . . . . . . . . . . 2 . . . . 12 . 1 . Watcher 14 | . 1 . 2 . . . . 1 . . 1 . . . . . 2 . . . 1 . . . . . . 1 . 1 . . 1 3 . Swarmer 65 | . 9 3 5 2 . 4 . 7 1 . 3 . . . . . 4 . . . . . 4 1 8 . 4 3 5 . . 2 . . . Saboteur 2 | . . . . . . . . . . . . . . . . . . . . 1 . . . . . . . . . . . 1 . . . Grunt 67 | . 2 11 14 7 . 4 6 3 . . . . . . . . 2 . . . . . . . . 8 4 . . . . 2 . 4 . Brawler 5 | . . . 1 . . . 1 . . . . . . . . . . . . . . . . . . 3 . . . . . . . . . Duelist 2 | . . . . . . 1 . . . . . . . . . . . . . . . . . . . 1 . . . . . . . . . Protector 1 | . . . . . . . . . . . . . . . . . . . . . . . . . . . . . . . . . . 1 . Researcher 1 | . . . . . . . . . . . . . . . . . . . . . . . . . . . . . . . . 1 . . . Sentry 34 | . . . 8 . . . 2 9 4 . . . . . . . . . . . . . . . . . . . . . . 10 . 1 . Demolisher 1 | . . . . . . . . . . . . . . . . . . . . . . . . . . 1 . . . . . . . . . Specialist 2 | . . . . . . . . . . . . . . . . . . . . . . . . . . 1 . . . . . 1 . . . Hunter 20 | . . . . . . . . . 1 . . . 1 . . . . . . . . . . . . . . . . . 1 8 . 9 . Programmer 11 | . . . . . . . . . 1 . . . . . . . . . . . . . . . . . . . . . 2 1 . 7 . M Guard 2 | . . . . . . . . . . . . . . . . . . . . . . . . . . . . . . . . . . 2 . Enhanced Grunt 10 | . . . . . . . . . . . . . . . . . . . . . . . . . . . . . . . . . . . 10 Enhanced Sentry 1 | . . . . . . . . . . . . . . . . . . . . . . . . . . . . . . . . . . . 1 Enhanced Demolisher 2 | . . . . . . . . . . . . . . . . . . . . . . . . . . 2 . . . . . . . . . Enhanced Hunter 2 | . . . . . . . . . . . . . . . . . . . . . . . . . . . . . . . . . . . 2 Hotshot 4 | . . . . . . . . . . . . . . . . . . . . . . . . . . . . . . . . 4 . . . Decapitator 6 | . . . . . . . . . . . . . . . . . . . . . . . . . . . . . . . . 6 . . . Immortal 4 | . . . . . . . . . . . . . . . . . . . . . . . . . . . . . . . . 4 . . . Combat Programmer 2 | . . . . . . . . . . . . . . . . . . . . . . . . . . . . . . . . . . 2 . Striker 3 | . . . . . . . . . . . . . . . . . . . . . . . . . . . . . . . . 1 . 2 . Executioner 4 | . . . . . . . . . . . . . . . . . . . . . . . . . . . . . . . . 2 . 2 . Alpha 7 2 | . . . . . . . . . . . . . . . . . . . . . . . . . . . . . . . . 2 . . . V-Series 7 | . . . . . . . . . . . . . . . . . . . . . . . . . . . . . . . . 7 . . . Scrapoid 1 | . . . . . . . . . . . . . . . . . . . . . . . . . . . . . . . . 1 . . . Packrat 2 | . . . . . . . . . . . . . . . . . . . . . . . . 2 . . . . . . . . . . . Samaritan 1 | . . . . . . . . . . . . . . . . . . . . . . . . . 1 . . . . . . . . . . Tinkerer 1 | . . . . . . . . . . . . . . . . . . . . . . . . . 1 . . . . . . . . . . Assembled 1 | . . 1 . . . . . . . . . . . . . . . . . . . . . . . . . . . . . . . . . Martyr 2 | . . . . . . . . . . . . 2 . . . . . . . . . . . . . . . . . . . . . . . Best Kill Streak 12 | 4 4 3 8 3 . 5 11 7 5 . 8 . 2 3 . 3 2 . 6 3 1 . 12 1 4 10 5 2 8 1 2 6 1 8 7 Combat Bots Only 10 | . 3 3 5 3 . 3 9 4 5 . 3 . 1 . . . 2 . . 1 . . 4 1 4 10 5 2 5 . 2 6 . 7 7 Max Kills in Single Turn 7 | 1 4 3 3 1 . 1 3 2 1 . 3 1 1 1 . 1 1 1 1 3 1 . 7 1 3 2 2 2 3 1 1 3 1 2 1 Gunslinging . | . . . . . . . . . . . . . . . . . . . . . . . . . . . . . . . . . . . . Exploded 3 | . 3 3 3 . . 1 2 1 . . 1 . . . . . 1 . . 1 . . 3 . 3 2 2 2 2 . . 3 . 2 1 Melee 2 | . . . . . . . . . . . 1 . 1 . . . 1 . . . . . 1 1 1 . . . . . 1 1 . 2 1 Uniques/NPCs Destroyed 7 | . . . . . . . . . . . . . . . . . . 1 . . . . . . . . . . . . . . . 2 4 A7 (-5/Cetus) MAIN.C Shell (-1/Command) MAIN.C (-1/Command) A8 (-1/Access_0) A6 (-1/Access_0) A5 (-1/Access_0) Architect (-1/Access_0) Combat | -11 -10 -10 -9 -9 -9 -8 -8 -8 -8 -8 -6 -6 -6 -5 -5 -5 -5 -5 -5 -5 -4 -4 -4 -4 -4 -4 -3 -3 -3 -2 -2 -2 -1 -1 -1 -------- Run | Yrd Mat Min Mat Min Exi Min Mat Sto Rec Scr Fac Was Fac Fac Was Fac Ext Cet Arc Hub Fac Was Fac Upp Upp War Pro Res Tes Res Qua Frg Acc Com Ac0 Hostile Shots Fired 1709 | . 50 60 111 34 . 34 18 75 37 . 35 . 41 35 . . 14 . 7 19 53 . 38 9 32 1 3 21 45 6 39 317 . 161 414 Missed 747 | . 18 13 30 4 . 11 6 32 5 . 18 . 18 17 . . 6 . 5 7 19 . 25 2 15 1 1 13 28 5 24 132 . 71 221 Deflected 14 | . . . . . . . . . . . . . . . . . . . . . . . . . . . . . . . 1 6 . 4 3 Hits 962 | . 32 47 81 30 . 23 12 43 32 . 17 . 23 18 . . 8 . 2 12 34 . 13 7 17 . 2 8 17 1 15 185 . 90 193 Melee 15 | . . . . . . . . . . . . . . . . . . . . . . . . 1 . . . . . . . 10 . . 4 Projectile 947 | . 32 47 81 30 . 23 12 43 32 . 17 . 23 18 . . 8 . 2 12 34 . 13 6 17 . 2 8 17 1 15 175 . 90 189 AOE 8 | . . . . . . . . . . . . . . 1 . . . . . . . . . . . . . . . . . 3 . 4 . Critical Strikes 52 | . . 2 3 . . 1 . 1 4 . . . . 1 . . 2 1 . 3 2 . 2 1 . . . 1 . . 2 10 . 8 8 Actively Blocked 6 | . . . . . . . . . . . . . . 1 . . 1 . . . . . . . . . . 1 . . 1 . . 2 . Part Disruptions 12 | . . . . . . . . . . . . . . . . . . . . . . . . . . . . . . . . 5 . 5 2 Actively Blocked 1 | . . . . . . . . . . . . . . . . . . . . . . . . . . . . . . . . . . . 1 Damage Taken 17758 | . 272 583 1072 372 . 305 104 439 448 . 250 . 328 493 . 44 268 29 143 358 749 . 483 156 299 119 44 263 384 25 272 4781 . 1495 3180 Core 2861 | . 56 128 135 40 . 24 26 33 36 . 61 . 50 201 . 22 45 8 17 18 96 . 104 . 58 . . 44 81 . 22 892 . 126 538 Absorbed by Shields 5654 | . . . 121 . . . 41 140 . . . . 62 . . . 56 . . . . . . . . . . . . . . 883 . 1339 3012 Redirected to Shielding 446 | . . . . . . . . . . . 10 . 36 27 . . 13 . . . . . . . . . . . 36 . 22 99 . 149 54 Ignored by Resistances 230 | . . . . . . . . . . . . . . . . . . . . . . . . . . . . . . . . . . 230 . Regen/Repaired (Parts) 3206 | . 141 . 200 . . . . . . . 15 99 17 . . 43 . . . . . . 134 . . 35 . 132 35 . . 1203 . 719 433 Core Remaining (%) 66 | 100 . 26 . . . 50 . . . 82 . . 86 . . . . . . 68 . . . . . . 77 . 90 . . 36 . . 49 Volleys Fired 1041 | 19 29 39 75 17 . 19 9 68 15 . 4 . . . . . 41 1 1 1 4 . 1 . 4 37 12 3 4 1 . 535 4 74 24 Largest 2 | 2 2 2 2 2 . 2 2 2 2 . 1 . . . . . 1 1 1 1 1 . 1 . 1 1 1 1 1 1 . 1 1 1 1 Hottest 140 | 40 100 100 128 136 . 136 136 136 136 . 33 . . . . . 33 7 20 43 7 . 43 . 43 50 43 43 43 70 . 140 140 140 120 Shots Fired 1289 | 38 53 75 142 34 . 32 12 128 30 . 4 . . . . 1 41 1 1 1 4 . 1 . 4 37 12 3 4 1 . 529 4 73 24 Gun 666 | 38 48 49 30 6 . . . . . . . . . . . . . . . . . . . . . . . . . . . 474 . 21 . Cannon 386 | . . 19 102 28 . 26 6 118 30 . . . . . . . . . . . . . . . . 1 . . . . . 19 4 31 2 Launcher 189 | . 1 4 10 . . 6 6 10 . . 4 . . . . 1 6 . . 1 . . 1 . 4 36 12 3 4 1 . 36 . 21 22 Special 48 | . 4 3 . . . . . . . . . . . . . . 35 1 1 . 4 . . . . . . . . . . . . . . Kinetic 147 | 38 39 33 30 6 . . . . . . . . . . . . . . . . . . . . . . . . . . . 1 . . . Thermal 388 | . 13 38 102 28 . 26 6 118 30 . . . . . . . . . 1 . . . . . . . . . . . . 12 4 10 . Explosive 163 | . 1 4 10 . . 6 6 5 . . 4 . . . . 1 6 . . 1 . . 1 . 4 36 12 3 4 1 . 36 . . 22 Electromagnetic 543 | . . . . . . . . 5 . . . . . . . . . . . . . . . . . . . . . . . 473 . 63 2 Entropic 8 | . . . . . . . . . . . . . . . . . . . . . . . . . . 1 . . . . . 7 . . . Robot Hit Streak 29 | 6 8 6 12 9 . 10 10 12 8 . 5 . . . . . 15 2 . 1 2 . . . . 2 5 . . . . 19 . 29 21 Robot Miss Streak 9 | 2 3 2 8 1 . 2 3 9 2 . . . . . . . 1 . 1 . 2 . . . . 3 1 . . . . 6 . 1 1 Penetration Max 1 | . . . . . . . . . . . . . . . . . . . . . . . . . . . . . . . . 1 . . . Secondary Targets . | . . . . . . . . . . . . . . . . . . . . . . . . . . . . . . . . . . . . Autonomous 23 | . . . . . . . . . . . . . . . . . . . . . . . . . . . . . . . 2 11 . 4 6 Shots Hit Robots 895 | 23 28 44 89 26 . 18 5 59 19 . 16 7 6 13 . 3 45 2 15 2 7 . 6 6 5 9 4 15 2 7 3 181 4 135 91 Core Hits 719 | 11 22 26 54 12 . 20 15 31 7 . 14 2 2 4 . 3 9 1 6 2 1 . 28 3 11 76 25 9 12 3 3 115 1 65 126 Critical Kills 4 | 1 . . . 1 . . . 2 . . . . . . . . . . . . . . . . . . . . . . . . . . . Critical Parts Destroyed 1 | . . . . . . . . . . . . . . . . . . . . . . . . . . . . . . . . . . 1 . Critical Strikes 14 | 1 . . . 1 . . . 2 . . . . . . . . . . . . . . . . . . . . . . . 6 . 2 2 Meltdown 3 | . . . . 1 . . . 2 . . . . . . . . . . . . . . . . . . . . . . . . . . . Destroy 1 | 1 . . . . . . . . . . . . . . . . . . . . . . . . . . . . . . . . . . . Corrupt 3 | . . . . . . . . . . . . . . . . . . . . . . . . . . . . . . . . 2 . 1 . Smash 1 | . . . . . . . . . . . . . . . . . . . . . . . . . . . . . . . . . . 1 . Melee Attacks 736 | . . . . . . . . . . 3 36 7 17 25 . 26 31 4 17 5 55 . 23 12 17 4 . 57 20 14 24 133 7 117 82 Impact 3 | . . . . . . . . . . . . . . . . . . . . . . . . . . . . . . . . . . 3 . Slashing 730 | . . . . . . . . . . 3 34 7 16 25 . 26 31 4 17 5 55 . 23 12 17 4 . 57 20 14 24 133 7 114 82 Piercing . | . . . . . . . . . . . . . . . . . . . . . . . . . . . . . . . . . . . . Sneak Attacks 87 | . . . . . . . . . . . 11 7 2 5 . 3 2 1 9 . 2 . 4 2 2 3 . 5 1 6 1 14 2 5 . Combat Hostiles 5 | . . . . . . . . . . . . . . . . . . . . . . . . . . . . . . . . 4 . 1 . Follow-up Attacks . | . . . . . . . . . . . . . . . . . . . . . . . . . . . . . . . . . . . . Martial Strikes 17 | . . . . . . . . . . . . . . . . . . . . . . . . . . . . . . . . . 1 15 1 Damage Inflicted 66400 | 264 525 880 2462 570 . 849 796 1625 458 . 1356 547 316 855 . 242 1148 69 1414 247 329 . 1135 383 1121 4826 1461 1398 800 625 568 14296 489 11839 12507 Guns 2837 | 264 288 319 198 60 . . . . . . . . . . . . . . . . . . . . . . . . . . . 1345 . 363 . Cannons 6177 | . . 226 1358 468 . 372 82 1268 418 . . . . . . . . . . . . . . . . . . . . . 186 885 . 306 608 Explosions 26683 | . 175 298 879 . . 463 714 305 . . 288 . . . . . 351 . . 202 . . 679 . 672 4510 1461 359 664 . . 5244 . 2468 6951 Melee 30429 | . . . . . . . . . . . 1068 547 316 855 . 242 797 69 1414 45 329 . 456 383 449 316 . 1039 136 625 382 6822 489 8702 4948 Ramming 274 | . 62 37 27 42 . 14 . 52 40 . . . . . . . . . . . . . . . . . . . . . . . . . . Kinetic 906 | 264 199 185 198 60 . . . . . . . . . . . . . . . . . . . . . . . . . . . . . . . Thermal 4671 | . 89 360 1358 468 . 372 82 1268 418 . . . . . . . . . . . . . 81 . . . . . . . . . . 175 . Explosive 23742 | . 175 298 879 . . 463 714 277 . . 288 . . . . . 351 . . 202 . . 234 . 672 4510 1461 359 664 . . 5244 . . 6951 Electromagnetic 4491 | . . . . . . . . 28 . . . . . . . . . . . . . . 364 . . . . . . . . 1345 . 2656 98 Impact 150 | . . . . . . . . . . . . . . . . . . . . . . . . . . . . . . . . . . 150 . Slashing 30279 | . . . . . . . . . . . 1068 547 316 855 . 242 797 69 1414 45 329 . 456 383 449 316 . 1039 136 625 382 6822 489 8552 4948 Piercing . | . . . . . . . . . . . . . . . . . . . . . . . . . . . . . . . . . . . . Phasic 1887 | . . . . . . . . . . . . . . . . . . . . . . . . . . . . . . . 186 885 . 306 510 Highest Corruption 23 | . 2 2 . . . . . . . . . . 5 1 10 10 11 11 11 3 3 3 4 4 4 4 1 . 5 . 3 23 1 21 3 Average Corruption 6 | . 2 2 . . . . . . . . . . 3 1 6 10 10 11 7 2 2 3 3 4 4 3 1 . 3 . 1 12 1 7 2 Corruption Purged 69 | . . . . . . . . . . . . . . . . . . . 11 . . . . . . . . . . . . . . 58 . Corruption Blocked . | . . . . . . . . . . . . . . . . . . . . . . . . . . . . . . . . . . . . Effects 519 | . 18 32 . . . . . . . . . . 3 . 2 15 42 12 11 . 8 1 6 7 4 . 4 . 2 . 3 261 49 39 . Message Errors 124 | . 7 7 . . . . . . . . . . . . . 1 6 2 2 . 1 . 1 1 2 . 1 . . . . 72 10 11 . Matter Fused 132 | . 5 6 . . . . . . . . . . 2 . 1 4 12 4 2 . 4 . 1 4 1 . . . . . 1 57 17 11 . Heat Flow Errors 62 | . 3 2 . . . . . . . . . . . . . 1 3 1 3 . 1 . . 2 . . 1 . 1 . 2 31 7 4 . Energy Discharges 53 | . 2 5 . . . . . . . . . . . . . 1 2 2 . . 2 1 1 . 1 . 1 . . . . 28 4 3 . Parts Rejected 1 | . . . . . . . . . . . . . . . . . . . . . . . . . . . . . . . . 1 . . . Parts Fused 9 | . . . . . . . . . . . . . . . . 1 2 1 . . . . . . . . . . . . . 3 1 1 . Data Loss (minor) 68 | . 1 5 . . . . . . . . . . 1 . . 4 3 1 1 . . . 3 . . . 1 . 1 . . 33 8 6 . Data Loss (major) 28 | . . 2 . . . . . . . . . . . . 1 1 4 1 2 . . . . . . . . . . . . 14 2 1 . Misfires 6 | . . 4 . . . . . . . . . . . . . 1 . . . . . . . . . . . . . . . 1 . . . Alerts 13 | . . . . . . . . . . . . . . . . . 2 . . . . . . . . . . . . . . 10 . 1 . Misdirections 14 | . . . . . . . . . . . . . . . . 1 8 . 1 . . . . . . . . . . . . 4 . . . Weapon Failures 9 | . . 1 . . . . . . . . . . . . . . . . . . . . . . . . . . . . . 7 . 1 . Overload Shots 1 | . . . . . . . . . . . . . . . . . . . . . . . . . . . . . . . . . . . 1 Overflow Damage 5859 | . . 23 4 12 . 3 1 9 8 . 270 33 93 135 . . 82 . 466 53 133 . 86 109 183 53 59 198 . 191 198 1583 272 1347 255 Projectiles 166 | . . . 4 12 . 3 . 4 8 . . . . . . . . . . . . . . . . . . . . . . 91 . . 44 Explosions 475 | . . 23 . . . . 1 5 . . . . . . . . . . . 53 . . . . 112 53 59 18 . . . 37 . 29 85 Melee 5218 | . . . . . . . . . . . 270 33 93 135 . . 82 . 466 . 133 . 86 109 71 . . 180 . 191 198 1455 272 1318 126 Knockbacks 4 | . . 2 . . . . . 1 . . . . . . . . . . . . . . . . . . . . . . . . . 1 . Impact 4 | . . 2 . . . . . 1 . . . . . . . . . . . . . . . . . . . . . . . . . 1 . Kinetic . | . . . . . . . . . . . . . . . . . . . . . . . . . . . . . . . . . . . . Secondary . | . . . . . . . . . . . . . . . . . . . . . . . . . . . . . . . . . . . . Self-Inflicted Damage 471 | . . . 32 . . . . 32 . . . . . . . 45 . . . . . . . . 28 47 . 45 . . . 134 . 32 76 Shots 13 | . . . 2 . . . . 2 . . . . . . . 1 . . . . . . . . 1 1 . 1 . . . 2 . 1 2 Rammed 40 | . 13 5 7 5 . 1 . 5 4 . . . . . . . . . . . . . . . . . . . . . . . . . . Targets Rammed 50 | . 14 5 9 6 . 3 . 8 5 . . . . . . . . . . . . . . . . . . . . . . . . . . Kicked . | . . . . . . . . . . . . . . . . . . . . . . . . . . . . . . . . . . . . Crushed 10 | . 1 . 2 1 . 2 . 3 1 . . . . . . . . . . . . . . . . . . . . . . . . . . Highest Temperature 372 | . 201 249 246 168 . 207 30 231 372 . . . 3 . . 137 260 265 220 35 135 4 33 148 . 103 132 188 326 317 134 323 357 306 4 Average Temperature 65 | . 53 49 55 67 . 66 15 46 127 . . . 2 . . 45 54 49 56 8 30 4 11 75 . 14 46 35 56 88 68 105 134 89 3 Received Heat Transfer 2054 | . 30 306 302 180 . 135 18 140 117 . . . 27 54 . . 61 27 18 63 120 . 9 12 21 . . 9 30 9 . 260 . 52 54 Effects 9 | . . . 1 . . . . . 1 . . . . . . . . 1 . . . . . . . . . . . 1 . . 2 3 . Shutdowns 1 | . . . . . . . . . . . . . . . . . . . . . . . . . . . . . . 1 . . . . . Energy Bleed 7 | . . . 1 . . . . . 1 . . . . . . . . 1 . . . . . . . . . . . . . . 1 3 . Interference 1 | . . . . . . . . . . . . . . . . . . . . . . . . . . . . . . . . . 1 . . Siege Activations . | . . . . . . . . . . . . . . . . . . . . . . . . . . . . . . . . . . . . Martial Activations . | . . . . . . . . . . . . . . . . . . . . . . . . . . . . . . . . . . . . Shielding Activations . | . . . . . . . . . . . . . . . . . . . . . . . . . . . . . . . . . . . . Robots Disrupted 4 | . . . . . . . . . . . . . . . . . . . 1 . . . 1 . . . . . . 1 . . . 1 . Combat Hostiles . | . . . . . . . . . . . . . . . . . . . . . . . . . . . . . . . . . . . . Robots Corrupted 23 | . . . . . . . . . . . . . . . . . . . . . . . . . . . . . . . . 8 . 14 1 Combat Hostiles 23 | . . . . . . . . . . . . . . . . . . . . . . . . . . . . . . . . 8 . 14 1 Parts Fried 49 | . . . . . . . . . . . . . . . . . . . . . . . . . . . . . . . . 7 . 36 6 Impact Corruptions 1 | . . . . . . . . . . . . . . . . . . . . . . . . . . . . . . . . . . 1 . Robots Melted 5 | . . . 1 1 . . . 3 . . . . . . . . . . . . . . . . . . . . . . . . . . . Combat Hostiles 4 | . . . 1 1 . . . 2 . . . . . . . . . . . . . . . . . . . . . . . . . . . Parts Melted 16 | . . . 2 1 . . 1 10 1 . . . . . . . 1 . . . . . . . . . . . . . . . . . . Heat Transferred 8398 | . 200 781 2664 814 . 666 148 2257 740 . . . . . . . . . . . . . 50 . . . . . . . . . . 78 . Parts Sabotaged . | . . . . . . . . . . . . . . . . . . . . . . . . . . . . . . . . . . . . Parts Stolen . | . . . . . . . . . . . . . . . . . . . . . . . . . . . . . . . . . . . . Parts Stripped 70 | . . . . . . . . . . . . . . . . . . . . . . . . . . . . . . . . 36 . 23 11 Power Chain Reactions 7 | . . . . . . . . 1 . . . . . . . . . . . . . . 4 . . . . . . . . . . 2 . Alert | -11 -10 -10 -9 -9 -9 -8 -8 -8 -8 -8 -6 -6 -6 -5 -5 -5 -5 -5 -5 -5 -4 -4 -4 -4 -4 -4 -3 -3 -3 -2 -2 -2 -1 -1 -1 ------- Run | Yrd Mat Min Mat Min Exi Min Mat Sto Rec Scr Fac Was Fac Fac Was Fac Ext Cet Arc Hub Fac Was Fac Upp Upp War Pro Res Tes Res Qua Frg Acc Com Ac0 Maximum Alert Level 4 | . . . 1 . . . 1 1 1 . . . 2 1 . . 3 2 1 2 2 . 2 . . . . 1 1 . 1 4 3 3 . Low Security (%) 44 | 100 100 100 83 100 . 100 68 57 99 . 100 100 33 95 100 100 15 . 32 40 28 100 58 . . . . 77 66 100 45 14 . 11 . Level 1 22 | . . . 16 . . . 31 42 . . . . 59 4 . . 50 49 67 10 25 . 26 . . . . 22 33 . 54 6 73 . . Level 2 6 | . . . . . . . . . . . . . 7 . . . 27 50 . 48 46 . 14 . . . . . . . . 4 17 6 . Level 3 16 | . . . . . . . . . . . . . . . . . 6 . . . . . . . . . . . . . . 27 9 81 . Level 4 9 | . . . . . . . . . . . . . . . . . . . . . . . . . . . . . . . . 47 . . . Level 5 . | . . . . . . . . . . . . . . . . . . . . . . . . . . . . . . . . . . . . High Security . | . . . . . . . . . . . . . . . . . . . . . . . . . . . . . . . . . . . . Max Security . | . . . . . . . . . . . . . . . . . . . . . . . . . . . . . . . . . . . . Peak Influence 1529 | 15 85 87 278 150 . 185 267 352 191 . 121 11 440 206 70 55 748 502 280 681 613 124 502 . . . . 295 316 198 309 1529 916 728 . Initial 916 | . 3 . 20 107 . . . 104 111 . . . . 122 65 28 1 317 180 47 321 109 86 . . . . 87 36 146 111 150 916 138 . Average 342 | 1 16 18 124 43 . 63 89 203 45 . 52 1 235 109 58 14 371 402 219 349 345 119 211 . . . . 133 134 170 189 946 351 241 . Influence Increases 16835 | 45 336 373 974 297 . 458 297 775 379 . 283 34 715 366 15 184 1449 385 240 879 840 15 868 145 270 325 205 518 434 122 463 2339 71 1272 464 Destroy 0b10 Robot/C 6400 | . 220 280 560 200 . 280 180 380 140 . 60 . 280 60 . . 620 160 60 260 . . 80 20 160 280 160 60 100 . 60 1120 . 620 . Destroy 0b10 Robot/NC 710 | 45 20 5 65 5 . 20 10 75 10 . 55 . 20 30 . 15 15 10 40 10 10 . 55 5 . . 10 30 15 5 5 55 10 60 . Destroy Leader 968 | . 46 40 174 40 . 40 50 124 . . 12 . 62 22 . . 44 . . 60 2 . 10 . 20 . 20 14 10 . 20 40 2 116 . Allied During Kill 1275 | . . . . 22 . 43 2 . . . . . 248 20 . . 479 170 80 202 . . . . . . . . . . . . . 9 . Trap Triggered on 0b10 20 | . . . . . . . . . . . . . . . . . . . . . 20 . . . . . . . . . . . . . . Successful Hack 349 | . 25 6 51 . . . . 34 18 . 5 . 8 6 . 21 . . . . 6 . 10 . . . . 89 12 . 36 2 . 20 . Select Force Hacks 240 | . . . 30 . . . . . 210 . . . . . . . . . . . . . . . . . . . . . . . . . . Disable Machine 1380 | . . 15 15 . . 30 15 75 . . . . 30 30 . 15 60 15 30 15 30 . 180 . . . . 15 180 15 30 435 15 60 75 Anti-Garrison Action 400 | . . . . . . . . . . . . . . . . . . . . 150 200 . . . . . . . . . . . . 50 . Destroy Structure 1913 | . 10 27 64 . . 45 40 42 1 . 31 34 7 18 . 58 126 30 30 62 92 . 38 . . . . 130 42 42 42 207 44 277 374 Partial Spotted 780 | . . . . . . . . . . . . . 30 30 15 30 75 . . 75 60 15 135 . . . . 60 75 45 45 30 . 45 15 Lose Combat Pursuer 2400 | . 15 . 15 30 . . . 45 . . 120 . 30 150 . 45 30 . . 45 420 . 360 120 90 45 15 120 . 15 225 450 . 15 . Influence Decreases 16441 | 40 341 321 750 573 . 458 50 735 666 . 283 34 464 429 163 220 885 501 556 359 1183 204 708 336 159 350 254 583 239 184 393 1078 1383 515 1044 Entered New Map 4543 | . 2 . 32 169 . . . 143 176 . . . . 129 123 12 3 251 272 89 335 204 38 106 19 204 179 43 29 114 87 118 613 79 974 Time Decay 8620 | 40 339 311 658 394 . 388 30 592 470 . 165 21 224 190 40 161 452 190 214 60 278 . 170 180 130 146 65 350 190 70 206 770 770 356 . Search Patrol Dispatched 200 | . . . . . . . . . . . . . . . . . . . . . 100 . . . . . . . . . 100 . . . . Lost Part 650 | . . 10 60 10 . 30 . . 20 . 20 . 50 50 . . 20 . 10 30 20 . 50 10 10 . 10 20 20 . . 110 . 20 70 Lost Ally 1083 | . . . . . . 40 20 . . . . 13 190 60 . . 260 60 60 180 . . . 40 . . . 20 . . . 80 . 60 . Purge Threat 1345 | . . . . . . . . . . . 98 . . . . 47 150 . . . 450 . 450 . . . . 150 . . . . . . . Squads Dispatched 137 | . 1 1 4 . . . 2 . . . 10 . 11 10 . 6 1 . . 7 14 . 10 . . . . 9 3 4 5 8 24 7 . Investigation 54 | . . 1 2 . . . . . . . 7 . 3 7 . 4 . . . . 11 . 4 . . . . 6 1 1 3 3 . 1 . Extermination 28 | . . . . . . . . . . . 1 . 1 1 . 1 . . . . 2 . 2 . . . . 1 2 1 2 1 10 3 . Reinforcement 30 | . 1 . 2 . . . 2 . . . 2 . 4 2 . 1 1 . . 3 1 . 2 . . . . 2 . 2 . 4 . 1 . Assault 20 | . . . . . . . . . . . . . . . . . . . . 2 . . 2 . . . . . . . . . 14 2 . Garrison 5 | . . . . . . . . . . . . . 3 . . . . . . 2 . . . . . . . . . . . . . . . Intercept . | . . . . . . . . . . . . . . . . . . . . . . . . . . . . . . . . . . . . Searches Triggered 2 | . . . . . . . . . . . . . . . . . . . . . 1 . . . . . . . . . 1 . . . . Unchained Authorized 1 | . . . . . . . . . . . . . . . . . . . . . . . . . . . . . . . . . 1 . . Construction Impeded 3 | . . . . . . . 1 . . . 1 . . . . . . . . . . . 1 . . . . . . . . . . . . Haulers Reinforced 6 | . . . . . . . . . . . . . 3 . . . . . . 1 . . . . . . . 2 . . . . . . . Active Scanning Responses . | . . . . . . . . . . . . . . . . . . . . . . . . . . . . . . . . . . . . Cargo Convoy Interrupts . | . . . . . . . . . . . . . . . . . . . . . . . . . . . . . . . . . . . . Stealth | -11 -10 -10 -9 -9 -9 -8 -8 -8 -8 -8 -6 -6 -6 -5 -5 -5 -5 -5 -5 -5 -4 -4 -4 -4 -4 -4 -3 -3 -3 -2 -2 -2 -1 -1 -1 --------- Run | Yrd Mat Min Mat Min Exi Min Mat Sto Rec Scr Fac Was Fac Fac Was Fac Ext Cet Arc Hub Fac Was Fac Upp Upp War Pro Res Tes Res Qua Frg Acc Com Ac0 Distress Signals 78 | . 2 . 7 . . . 1 3 . . . . 5 1 . . 1 1 . 4 3 . 3 . . . . 3 . 1 1 18 . 24 . Communications Jammed . | . . . . . . . . . . . . . . . . . . . . . . . . . . . . . . . . . . . . Distress Signals . | . . . . . . . . . . . . . . . . . . . . . . . . . . . . . . . . . . . . Times Spotted 763 | . 23 16 44 12 . 15 13 29 5 2 15 8 22 27 6 9 33 7 11 22 45 3 37 7 14 64 9 33 23 7 19 99 4 46 34 Peak Tracking Total 16 | . 4 3 6 3 . 3 5 4 3 1 4 6 6 10 6 3 5 5 2 15 13 3 16 6 6 14 4 8 10 4 8 11 5 8 7 Tactical Retreats 93 | . 1 . 1 1 . . . 3 . 1 6 2 2 7 . 1 1 . . 1 10 . 7 4 3 3 1 6 1 2 6 17 . 6 . ECM-based Alert Blocks 29 | . . . . . . . . . . . 1 . 4 9 . . . . . . . . . . . . . 1 4 1 . . . 9 . Traps | -11 -10 -10 -9 -9 -9 -8 -8 -8 -8 -8 -6 -6 -6 -5 -5 -5 -5 -5 -5 -5 -4 -4 -4 -4 -4 -4 -3 -3 -3 -2 -2 -2 -1 -1 -1 ------- Run | Yrd Mat Min Mat Min Exi Min Mat Sto Rec Scr Fac Was Fac Fac Was Fac Ext Cet Arc Hub Fac Was Fac Upp Upp War Pro Res Tes Res Qua Frg Acc Com Ac0 Traps Triggered 44 | . 1 . 3 . . . . 2 . . 1 . 2 1 . . 1 . . . 5 . 3 . . 1 . . 1 . 1 11 1 10 . Indirectly 3 | . . . . . . . . 2 . . . . . . . . . . . . . . . . . . . . . . . . . 1 . Trap Hack Attempts . | . . . . . . . . . . . . . . . . . . . . . . . . . . . . . . . . . . . . Triggered . | . . . . . . . . . . . . . . . . . . . . . . . . . . . . . . . . . . . . Disarmed . | . . . . . . . . . . . . . . . . . . . . . . . . . . . . . . . . . . . . Reprogrammed 6 | . . . . . . . . . . . . . . . . . . . . . 6 . . . . . . . . . . . . . . Reused 2 | . . . . . . . . . . . . . . . . . . . . . 2 . . . . . . . . . . . . . . Traps Extracted . | . . . . . . . . . . . . . . . . . . . . . . . . . . . . . . . . . . . . Installed . | . . . . . . . . . . . . . . . . . . . . . . . . . . . . . . . . . . . . Triggered 2 | . . . . . . . . . . . . . . . . . . . . . 2 . . . . . . . . . . . . . . Most Traps Carried 1 | . . . . 1 1 1 1 1 1 1 . . . . . . . . . . . . . . . . . . . . . . . . . Machines | -11 -10 -10 -9 -9 -9 -8 -8 -8 -8 -8 -6 -6 -6 -5 -5 -5 -5 -5 -5 -5 -4 -4 -4 -4 -4 -4 -3 -3 -3 -2 -2 -2 -1 -1 -1 ---------- Run | Yrd Mat Min Mat Min Exi Min Mat Sto Rec Scr Fac Was Fac Fac Was Fac Ext Cet Arc Hub Fac Was Fac Upp Upp War Pro Res Tes Res Qua Frg Acc Com Ac0 Machines Disabled 107 | . . 1 1 . . 2 1 5 . 2 . . 2 2 . 1 6 1 2 2 2 . 12 . . 1 . 1 12 1 2 36 1 6 5 Max in Single Turn 10 | . . 1 1 . . 1 1 1 . . . . . 1 . 1 1 1 1 1 1 . 10 . . 1 . 1 1 1 1 3 1 2 1 Garrison Access 9 | . . . . . . . . 1 . . 1 . 1 . . . . . . 1 1 . . . . . . 1 1 . 1 1 . . . Phase Generator 1 | . . . . . . . . . . . . . . . . . . . . . . . . . . . . . . . . . . 1 . Network Hub 1 | . . . . . . . . . . . . . . . . . . . . 1 . . . . . . . . . . . . . . . Machines Repaired . | . . . . . . . . . . . . . . . . . . . . . . . . . . . . . . . . . . . . Machines Dismantled 6 | . . . . . . . . . . . . . . . . . 4 1 . 1 . . . . . . . . . . . . . . . Machines Sabotaged . | . . . . . . . . . . . . . . . . . . . . . . . . . . . . . . . . . . . . Overloaded Fab Kills . | . . . . . . . . . . . . . . . . . . . . . . . . . . . . . . . . . . . . Hacking | -11 -10 -10 -9 -9 -9 -8 -8 -8 -8 -8 -6 -6 -6 -5 -5 -5 -5 -5 -5 -5 -4 -4 -4 -4 -4 -4 -3 -3 -3 -2 -2 -2 -1 -1 -1 --------- Run | Yrd Mat Min Mat Min Exi Min Mat Sto Rec Scr Fac Was Fac Fac Was Fac Ext Cet Arc Hub Fac Was Fac Upp Upp War Pro Res Tes Res Qua Frg Acc Com Ac0 Machines Accessed 171 | . 9 2 11 . 1 . . 10 11 2 11 . 10 11 . 11 8 1 . 1 17 . 9 . . 1 . 17 6 2 9 5 1 5 . Terminals 89 | . 7 1 8 . . . . 9 4 . 3 . 3 4 . 4 8 1 . 1 6 . 2 . . . . 7 4 1 8 3 1 4 . Fabricators 11 | . . . . . . . . . . . . . 1 1 . 1 . . . . 4 . 1 . . . . 2 . 1 . . . . . Repair Stations 10 | . 1 . 1 . . . . . . . 1 . . . . 2 . . . . . . 2 . . . . 2 1 . . . . . . Recycling Units 40 | . 1 . 1 . . . . . 7 . 6 . 2 5 . 4 . . . . 6 . 3 . . . . 3 . . . 1 . 1 . Scanalyzers 6 | . . . 1 . . . . . . . . . 2 . . . . . . . . . 1 . . . . 2 . . . . . . . Garrison Access 10 | . . . . . . . . 1 . . 1 . 2 1 . . . . . . 1 . . . . . . 1 1 . 1 1 . . . Total Hacks 430 | . 38 3 35 . 2 . . 20 18 5 20 . 24 22 . 20 16 2 . 4 51 . 25 . . 1 . 55 14 7 29 9 1 9 . Successful 235 | . 20 2 17 . 2 . . 12 13 5 12 . 12 12 . 16 4 . . 1 30 . 17 . . 1 . 31 6 1 12 6 1 2 . Failed 191 | . 16 1 17 . . . . 8 5 . 8 . 12 10 . 4 12 2 . 3 21 . 7 . . . . 24 8 6 17 3 . 7 . Catastrophic 37 | . . 1 3 . . . . 1 1 . 1 . 4 4 . 1 . 1 . . 4 . 1 . . . . 2 5 3 2 1 . 2 . Database Lockouts 4 | . 2 . 1 . . . . . . . . . . . . . . . . . . . 1 . . . . . . . . . . . . Manual 245 | . 18 2 19 . . . . 14 14 . 14 . 14 19 . 11 5 1 . 4 38 . 15 . . . . 25 8 5 12 4 . 3 . Terminals 260 | . 29 2 24 . . . . 18 11 . 6 . 11 12 . 9 16 2 . 4 26 . 10 . . . . 25 10 3 27 6 1 8 . Fabricators 43 | . . . . . . . . . . . . . 5 2 . 3 . . . . 17 . 4 . . . . 8 . 4 . . . . . Repair Stations 39 | . 7 . 8 . . . . . . . 1 . . . . 4 . . . . . . 5 . . . . 11 3 . . . . . . Recycling Units 51 | . 2 . 1 . . . . . 7 . 12 . 2 6 . 4 . . . . 7 . 4 . . . . 3 . . . 2 . 1 . Scanalyzers 14 | . . . 2 . . . . . . . . . 3 . . . . . . . . . 2 . . . . 7 . . . . . . . Garrison Access 14 | . . . . . . . . 2 . . 1 . 3 2 . . . . . . 1 . . . . . . 1 1 . 2 1 . . . Terminal Hacks 86 | . 8 2 2 . 2 . . 4 2 5 2 . 1 3 . 3 4 . . 1 11 . 6 . . 1 . 8 3 . 11 4 1 2 . Record 8 | . 2 . . . 2 . . . . 4 . . . . . . . . . . . . . . . . . . . . . . . . . Part Schematic 6 | . 1 . . . . . . 1 . . . . 1 1 . . . . . . 1 . . . . . . 1 . . . . . . . Robot Schematic 1 | . . . . . . . . . 1 . . . . . . . . . . . . . . . . . . . . . . . . . . Robot Analysis 1 | . 1 . . . . . . . . . . . . . . . . . . . . . . . . . . . . . . . . . . Prototype ID Bank 4 | . 2 . 1 . . . . . 1 . . . . . . . . . . . . . . . . . . . . . . . . . . Open Door 11 | . . 1 . . . . . 3 . 1 . . . . . . 3 . . . . . . . . 1 . . . . . . 1 1 . Level Access Points 1 | . . . . . . . . . . . . . . . . . . . . 1 . . . . . . . . . . . . . . . Branch Access Points 6 | . . . 1 . . . . . . . . . . 1 . 1 . . . . 1 . 1 . . . . 1 . . . . . . . Machine Index 1 | . . . . . . . . . . . . . . . . . . . . . . . . . . . . 1 . . . . . . . Terminal Index 3 | . . . . . . . . . . . . . . . . . . . . . 1 . . . . . . . 1 . 1 . . . . Recycling Unit Index 1 | . . . . . . . . . . . . . . . . . . . . . . . 1 . . . . . . . . . . . . Unreport Threat 10 | . . . . . . . . . . . 1 . . . . 1 1 . . . 3 . 3 . . . . 1 . . . . . . . Locate Traps 4 | . 1 . . . . . . . . . . . . 1 . . . . . . 1 . . . . . . . . . 1 . . . . Reprogram Traps 1 | . . . . . . . . . . . . . . . . . . . . . 1 . . . . . . . . . . . . . . Maintenance Status 5 | . . . . . . . . . . . . . . . . 1 . . . . 1 . 1 . . . . . . . 1 1 . . . Patrol Status 3 | . . . . . . . . . . . . . . . . . . . . . . . . . . . . . . . 1 1 . 1 . Recall Investigation 7 | . . . . . . . . . . . . . . . . . . . . . 1 . . . . . . 2 1 . 3 . . . . Recall Extermination 4 | . . . . . . . . . . . 1 . . . . . . . . . . . . . . . . 1 1 . 1 . . . . Hauler Manifests 1 | . . . . . . . . . . . . . . . . . . . . . . . . . . . . 1 . . . . . . . Zone Layout 7 | . 1 1 . . . . . . . . . . . . . . . . . . 1 . . . . . . . . . 3 1 . . . Proto ID Catalog 1 | . . . . . . . . . . . . . . . . . . . . . . . . . . . . . . . . 1 . . . Fabricator Hacks 24 | . . . . . . . . . . . . . 2 1 . 3 . . . . 9 . 2 . . . . 6 . 1 . . . . . Network Status 3 | . . . . . . . . . . . . . . . . 1 . . . . 1 . 1 . . . . . . . . . . . . Load Schematic 14 | . . . . . . . . . . . . . 1 1 . 1 . . . . 6 . 1 . . . . 3 . 1 . . . . . Build 7 | . . . . . . . . . . . . . 1 . . 1 . . . . 2 . . . . . . 3 . . . . . . . Repair Station Hacks 27 | . 4 . 6 . . . . . . . . . . . . 4 . . . . . . 4 . . . . 7 2 . . . . . . Scan Component 14 | . 2 . 3 . . . . . . . . . . . . 2 . . . . . . 2 . . . . 4 1 . . . . . . Repair 13 | . 2 . 3 . . . . . . . . . . . . 2 . . . . . . 2 . . . . 3 1 . . . . . . Recycling Unit Hacks 2 | . 1 . . . . . . . . . 1 . . . . . . . . . . . . . . . . . . . . . . . . Retrieve Components 2 | . 1 . . . . . . . . . 1 . . . . . . . . . . . . . . . . . . . . . . . . Scanalyzer 5 | . . . 1 . . . . . . . . . . . . . . . . . . . 1 . . . . 3 . . . . . . . Insert Component 1 | . . . . . . . . . . . . . . . . . . . . . . . . . . . . 1 . . . . . . . Analyze 1 | . . . . . . . . . . . . . . . . . . . . . . . . . . . . 1 . . . . . . . Retrieve Study 3 | . . . 1 . . . . . . . . . . . . . . . . . . . 1 . . . . 1 . . . . . . . Garrison Access Hacks 7 | . . . . . . . . 1 . . 1 . 1 . . . . . . . . . . . . . . 1 1 . 1 1 . . . Seal Access 7 | . . . . . . . . 1 . . 1 . 1 . . . . . . . . . . . . . . 1 1 . 1 1 . . . Unauthorized Hacks 84 | . 7 . 8 . . . . 7 11 . 8 . 8 8 . 6 . . . . 10 . 4 . . . . 6 . . . 1 . . . Terminals 39 | . 7 . 7 . . . . 7 4 . 2 . 5 3 . 2 . . . . . . . . . . . 2 . . . . . . . Assimilate 4 | . . . . . . . . . . . . . . 1 . 1 . . . . . . . . . . . 2 . . . . . . . Botnet 15 | . 2 . 2 . . . . 2 2 . 2 . 3 1 . 1 . . . . . . . . . . . . . . . . . . . Skim 20 | . 5 . 5 . . . . 5 2 . . . 2 1 . . . . . . . . . . . . . . . . . . . . . Fabricators 7 | . . . . . . . . . . . . . 1 1 . . . . . . 3 . 1 . . . . 1 . . . . . . . Prioritize 2 | . . . . . . . . . . . . . 1 . . . . . . . . . . . . . . 1 . . . . . . . Recompile 5 | . . . . . . . . . . . . . . 1 . . . . . . 3 . 1 . . . . . . . . . . . . Repair Stations 1 | . . . . . . . . . . . 1 . . . . . . . . . . . . . . . . . . . . . . . . Patch 1 | . . . . . . . . . . . 1 . . . . . . . . . . . . . . . . . . . . . . . . Recycling Units 36 | . . . 1 . . . . . 7 . 5 . 2 4 . 4 . . . . 6 . 3 . . . . 3 . . . 1 . . . Tunnel 8 | . . . 1 . . . . . 7 . . . . . . . . . . . . . . . . . . . . . . . . . . Fedlink 27 | . . . . . . . . . . . 5 . 2 3 . 4 . . . . 6 . 3 . . . . 3 . . . 1 . . . Scrapoids 1 | . . . . . . . . . . . . . . 1 . . . . . . . . . . . . . . . . . . . . . Scanalyzers . | . . . . . . . . . . . . . . . . . . . . . . . . . . . . . . . . . . . . Garrison Access 1 | . . . . . . . . . . . . . . . . . . . . . 1 . . . . . . . . . . . . . . Jam 1 | . . . . . . . . . . . . . . . . . . . . . 1 . . . . . . . . . . . . . . Data Cores Recovered . | . . . . . . . . . . . . . . . . . . . . . . . . . . . . . . . . . . . . Used . | . . . . . . . . . . . . . . . . . . . . . . . . . . . . . . . . . . . . Hacking Detections 97 | . 6 1 8 . . . . 7 3 . 5 . 7 7 . 5 7 1 . 1 8 . 3 . . . . 10 4 2 7 2 . 3 . Full Trace Events 6 | . . . . . . . . . . . 1 . 1 2 . . . . . . . . . . . . . 1 . 1 . . . . . Feedback Events 1 | . . . . . . . . . . . . . . 1 . . . . . . . . . . . . . . . . . . . . . Hackware Fried 1 | . . . . . . . . . . . . . . 1 . . . . . . . . . . . . . . . . . . . . . Feedback Blocked . | . . . . . . . . . . . . . . . . . . . . . . . . . . . . . . . . . . . . Robot Schematics Acquired 2 | . . . . . . . . . 1 . . . . . . . . . . . . . . . . . . . . . . 1 . . . Robots Built . | . . . . . . . . . . . . . . . . . . . . . . . . . . . . . . . . . . . . Authchips . | . . . . . . . . . . . . . . . . . . . . . . . . . . . . . . . . . . . . Time . | . . . . . . . . . . . . . . . . . . . . . . . . . . . . . . . . . . . . Total Robot Build Rating . | . . . . . . . . . . . . . . . . . . . . . . . . . . . . . . . . . . . . Part Schematics Acquired 10 | . 1 . . . . . . 1 . . . . 1 1 . . . . . . 1 . . . . . . 2 . . . 3 . . . Parts Built 7 | . . . . . . . . . . . . . 1 . . 1 . . . . 2 . . . . . . 3 . . . . . . . Authchips 6 | . . . . . . . . . . . . . 1 . . 1 . . . . 2 . . . . . . 2 . . . . . . . Time 616 | . . . . . . . . . . . . . 67 . . 67 . . . . 134 . . . . . . 348 . . . . . . . Total Part Build Rating 37 | . . . . . . . . . . . . . 4 . . 4 . . . . 8 . . . . . . 21 . . . . . . . Part Studies Acquired 3 | . . . 1 . . . . . . . . . . . . . . . . . . . 1 . . . . 1 . . . . . . . Parts Repaired 13 | . 2 . 3 . . . . . . . . . . . . 2 . . . . . . 2 . . . . 3 1 . . . . . . Time 468 | . 52 . 78 . . . . . . . . . . . . 70 . . . . . . 100 . . . . 124 44 . . . . . . Parts Recycled . | . . . . . . . . . . . . . . . . . . . . . . . . . . . . . . . . . . . . Recycled Matter . | . . . . . . . . . . . . . . . . . . . . . . . . . . . . . . . . . . . . Retrieved Matter . | . . . . . . . . . . . . . . . . . . . . . . . . . . . . . . . . . . . . Retrieved Components 7 | . . . . . . . . . . . 7 . . . . . . . . . . . . . . . . . . . . . . . . Parts Scanalyzed 1 | . . . . . . . . . . . . . . . . . . . . . . . . . . . . 1 . . . . . . . Part Schematics Acquired 1 | . . . . . . . . . . . . . . . . . . . . . . . . . . . . 1 . . . . . . . Parts Damaged . | . . . . . . . . . . . . . . . . . . . . . . . . . . . . . . . . . . . . Bothacking | -11 -10 -10 -9 -9 -9 -8 -8 -8 -8 -8 -6 -6 -6 -5 -5 -5 -5 -5 -5 -5 -4 -4 -4 -4 -4 -4 -3 -3 -3 -2 -2 -2 -1 -1 -1 ------------ Run | Yrd Mat Min Mat Min Exi Min Mat Sto Rec Scr Fac Was Fac Fac Was Fac Ext Cet Arc Hub Fac Was Fac Upp Upp War Pro Res Tes Res Qua Frg Acc Com Ac0 Used RIF Installer . | . . . . . . . . . . . . . . . . . . . . . . . . . . . . . . . . . . . . Robots Hacked 5 | . . . . . . . . . . . 1 . . . . . 1 1 . . 2 . . . . . . . . . . . . . . Non-combat 3 | . . . . . . . . . . . 1 . . . . . . . . . 2 . . . . . . . . . . . . . . Combat 2 | . . . . . . . . . . . . . . . . . 1 1 . . . . . . . . . . . . . . . . . Robot Hacks Applied 5 | . . . . . . . . . . . 1 . . . . . 1 1 . . 2 . . . . . . . . . . . . . . parse_system 2 | . . . . . . . . . . . . . . . . . 1 1 . . . . . . . . . . . . . . . . . find_chute 2 | . . . . . . . . . . . 1 . . . . . . . . . 1 . . . . . . . . . . . . . . find_recycling 1 | . . . . . . . . . . . . . . . . . . . . . 1 . . . . . . . . . . . . . . Relay Couplers Released . | . . . . . . . . . . . . . . . . . . . . . . . . . . . . . . . . . . . . Fabnet Peak Effective % . | . . . . . . . . . . . . . . . . . . . . . . . . . . . . . . . . . . . . Robots Rewired 36 | . . . . . . . . . 12 . . . . . . . 20 . 1 . . . . 2 . . . . . 1 . . . . . Allies Hacked 1 | . . . . . . . . . . . . . . 1 . . . . . . . . . . . . . . . . . . . . . Hacks Repelled . | . . . . . . . . . . . . . . . . . . . . . . . . . . . . . . . . . . . . Allies | -11 -10 -10 -9 -9 -9 -8 -8 -8 -8 -8 -6 -6 -6 -5 -5 -5 -5 -5 -5 -5 -4 -4 -4 -4 -4 -4 -3 -3 -3 -2 -2 -2 -1 -1 -1 -------- Run | Yrd Mat Min Mat Min Exi Min Mat Sto Rec Scr Fac Was Fac Fac Was Fac Ext Cet Arc Hub Fac Was Fac Upp Upp War Pro Res Tes Res Qua Frg Acc Com Ac0 Total Allies 81 | . . . . 4 . . . . 12 . . 18 . 5 . 1 30 5 1 . . . . 2 . . . 2 . 1 . . . . . Largest Group 18 | . . . . 4 3 3 1 . 12 12 . 18 11 5 . 1 14 17 14 10 . . . 2 . . . 1 . 1 . . . . . Highest-Rated Group 913 | . . . . 71 40 40 16 . 214 214 . 638 413 235 . 10 498 913 726 607 . . . 92 . . . 45 . 25 . . . . . Highest-Rated Ally 159 | . . . . 31 16 16 16 . 27 27 . 50 46 47 . 10 159 135 96 96 . . . 46 . . . 45 . 25 . . . . . Initial UFD Resources 122 | . . . . . . . . . . . 23 43 43 50 63 63 71 71 71 71 73 95 95 101 101 101 103 103 119 122 122 122 . . . Total Orders 24 | . . . . . . . . . 2 2 . . . . . 2 4 7 2 . . . . . . . . . . . . 2 . 2 1 STAY 10 | . . . . . . . . . 1 1 . . . . . 1 2 4 1 . . . . . . . . . . . . . . . . FOLLOW 9 | . . . . . . . . . 1 1 . . . . . 1 2 3 1 . . . . . . . . . . . . . . . . EXPLORE 1 | . . . . . . . . . . . . . . . . . . . . . . . . . . . . . . . . 1 . . . RETURN 4 | . . . . . . . . . . . . . . . . . . . . . . . . . . . . . . . . 1 . 2 1 Ally Attacks 712 | . . . . 3 . 31 5 . . 34 . 91 59 26 . . 222 74 42 46 . . . 7 . . . . . . . 12 . 33 27 Total Damage 22339 | . . . . 37 . 297 45 . . 648 . 5452 1376 616 . . 4283 1749 1459 1739 . . . 218 . . . . . . . 192 . 2633 1595 Kills 95 | . . . . 1 . 5 . . . 6 . 8 15 3 . . 28 11 4 12 . . . 1 . . . . . . . . . 1 . Allies Corrupted 5 | . . . . . . . . . . . . . . . . . . . . 2 . . . . . . . 1 . . . . . 2 . Allies Melted 10 | . . . . . . . . . . 2 . . . . . . 1 . . 1 . . . 1 . 1 . . . . . 4 . . . Intel | -11 -10 -10 -9 -9 -9 -8 -8 -8 -8 -8 -6 -6 -6 -5 -5 -5 -5 -5 -5 -5 -4 -4 -4 -4 -4 -4 -3 -3 -3 -2 -2 -2 -1 -1 -1 ------- Run | Yrd Mat Min Mat Min Exi Min Mat Sto Rec Scr Fac Was Fac Fac Was Fac Ext Cet Arc Hub Fac Was Fac Upp Upp War Pro Res Tes Res Qua Frg Acc Com Ac0 Active Infowar (turns) 18905 | . . . . . . . 151 1046 . 63 434 279 552 386 87 470 1133 382 455 131 614 14 347 367 269 899 302 791 385 157 438 6541 1353 859 . Optics 13485 | . . . . . . . . . . . 174 279 552 334 87 470 1133 382 455 131 614 14 347 367 269 899 302 791 385 157 438 4905 . . . Sensors 8811 | . . . . . . . . . . 2 . 208 474 107 87 470 1133 382 202 131 614 14 287 367 2 . . 200 385 157 438 3151 . . . Terrain 231 | . . . . . . . . . . . . . . . . . . . . . . . . . . . . 231 . . . . . . . Seismic 2502 | . . . . . . . 151 1046 . 61 427 52 . . . . . . . . 250 . . . . . 15 500 . . . . . . . Machine Analysis 1601 | . . . . . . . . . . . 408 279 552 362 . . . . . . . . . . . . . . . . . . . . . Cloaking 3173 | . . . . . . . . . . . . . . . . . . . . . . . 2 1 . . . . . . . 1383 1353 434 . ECM 1080 | . . . . . . . . . . . 62 227 97 70 . 39 2 . . . . . . . . . . 23 87 9 . . . 464 . Robot Analysis Total 1 | . 1 . . . . . . . . . . . . . . . . . . . . . . . . . . . . . . . . . . Derelict Logs Recovered 6 | . . 1 . 2 . . . . . . . . . . . . . . . . . . . 1 2 . . . . . . . . . . Drone Launches 20 | . . . . . . . . . . . . . . . . . . . . . . . . . . . . . . . . 8 . 6 6 Drone Recoveries 13 | . . . . . . . . . . . . . . . . . . . . . . . . . . . . . . . . 4 . 3 6 Exploration | -11 -10 -10 -9 -9 -9 -8 -8 -8 -8 -8 -6 -6 -6 -5 -5 -5 -5 -5 -5 -5 -4 -4 -4 -4 -4 -4 -3 -3 -3 -2 -2 -2 -1 -1 -1 ------------- Run | Yrd Mat Min Mat Min Exi Min Mat Sto Rec Scr Fac Was Fac Fac Was Fac Ext Cet Arc Hub Fac Was Fac Upp Upp War Pro Res Tes Res Qua Frg Acc Com Ac0 Turns Passed 45335 | 247 1690 2173 2832 1656 461 1158 152 1860 1909 2428 452 279 552 386 87 470 1133 382 455 131 614 14 347 367 269 899 302 791 385 157 438 7638 6960 4718 543 Spaces Moved 41608 | 103 499 622 955 651 193 454 52 613 726 1332 917 429 1188 845 209 993 1392 291 274 286 1467 69 1126 1043 618 2145 954 2200 895 561 760 10064 551 5265 866 Core 16 | 8 . . . . . . . . . 8 . . . . . . . . . . . . . . . . . . . . . . . . . Treads 5792 | 95 499 622 955 651 193 454 52 613 726 932 . . . . . . . . . . . . . . . . . . . . . . . . . Legs . | . . . . . . . . . . . . . . . . . . . . . . . . . . . . . . . . . . . . Wheels . | . . . . . . . . . . . . . . . . . . . . . . . . . . . . . . . . . . . . Hover 12356 | . . . . . . . . . . . 8 . 5 4 . . . . . . . . . . . . . . . . . 5657 551 5265 866 Flight 23444 | . . . . . . . . . . 392 909 429 1183 841 209 993 1392 291 274 286 1467 69 1126 1043 618 2145 954 2200 895 561 760 4407 . . . Fastest Speed 5 | 50 160 320 240 240 240 240 240 240 232 30 27 27 27 27 29 25 20 23 21 21 14 20 15 19 19 19 23 18 6 7 7 5 36 36 38 Average Speed 60 | 151 299 320 240 240 240 240 240 240 236 173 29 27 27 29 29 28 26 23 21 21 20 20 21 25 21 20 23 21 19 15 16 27 36 52 41 Slowest Speed 320 | 160 320 320 320 240 240 240 240 240 240 235 114 27 80 80 31 32 99 23 28 27 24 20 26 95 95 97 23 26 20 20 21 120 36 101 101 Overloaded Moves 164 | . . . . . . . . . . . . . . . . . . . . . 32 . 18 7 . . . . 14 6 12 75 . . . Propulsion Burnouts 1 | . . . . . . . . . . . . . . . . . . . . . . . . . . . . . . . . 1 . . . Robots Hopped 215 | . . . . . . . . . . . 5 . 9 29 . 16 21 . 5 13 24 . 11 3 3 . . 44 12 2 5 13 . . . Potential Cave-ins 5 | . . . . . . . . . . . . . . . . 4 . . . . . . . . . 1 . . . . . . . . . Cave-ins Triggered . | . . . . . . . . . . . . . . . . . . . . . . . . . . . . . . . . . . . . Teleports 2 | . . . . . . . . . . . . . . . . . . . . . . . . . . . . . . . . . . 1 1 Exploration Rate (%) 63 | 5 96 95 88 97 50 93 8 92 95 83 33 96 28 29 94 23 88 83 95 28 39 80 33 87 58 93 95 35 90 15 83 69 16 74 31 Regions Visited 35 Branch Regions 20 Pre-discovered Areas 18 | . 3 . 3 . 1 . . 1 7 . 1 . . . . . . . . . . . . 1 1 . . . . . . . . . . Known Exits Taken 22 | . 1 1 1 . . 1 1 1 1 1 . . . . . 1 1 1 1 1 . . 1 1 1 1 1 1 1 1 1 . . . . Unknown Exits Taken 7 | 1 . . . 1 1 . . . . . . . 1 . . . . . . . . . . . . . . . . . . 1 1 1 . Scrap Searched 16 | . . 2 . 1 . 1 . . . 5 . . . . . . . . . . . . . 2 3 . 2 . . . . . . . . Spaces Dug 591 | . 10 10 30 . . 35 . 23 . 3 23 . 7 5 . 33 42 . 1 4 47 . 13 5 82 . 52 70 11 13 17 27 8 18 2 Terrain Destroyed 1415 | . 10 40 71 . . 59 42 34 . 3 31 . 7 5 . 33 61 . 1 19 47 . 19 5 82 192 117 70 20 13 17 79 10 119 209 Melee 240 | . . . . . . . . . . 3 19 . 7 5 . 23 7 . 1 4 47 . 13 5 10 . . 36 8 6 17 12 3 12 2 Projectile 30 | . 2 . . . . 1 . . . . . . . . . . . . . . . . . . . . . . . . . 10 7 10 . AOE 1145 | . 8 40 71 . . 58 42 34 . . 12 . . . . 10 54 . . 15 . . 6 . 72 192 117 34 12 7 . 57 . 97 207 Terrain Rammed . | . . . . . . . . . . . . . . . . . . . . . . . . . . . . . . . . . . . . Walls Destroyed . | . . . . . . . . . . . . . . . . . . . . . . . . . . . . . . . . . . . . Machines Disabled . | . . . . . . . . . . . . . . . . . . . . . . . . . . . . . . . . . . . . Actions | -11 -10 -10 -9 -9 -9 -8 -8 -8 -8 -8 -6 -6 -6 -5 -5 -5 -5 -5 -5 -5 -4 -4 -4 -4 -4 -4 -3 -3 -3 -2 -2 -2 -1 -1 -1 --------- Run | Yrd Mat Min Mat Min Exi Min Mat Sto Rec Scr Fac Was Fac Fac Was Fac Ext Cet Arc Hub Fac Was Fac Upp Upp War Pro Res Tes Res Qua Frg Acc Com Ac0 Total 59485 | 158 612 714 1349 703 192 484 68 867 884 1441 1031 579 1374 910 234 1123 2044 590 640 329 1667 68 1189 1129 720 2552 1021 2393 1060 607 1032 14283 7301 7122 1015 Wait 14403 | 22 52 31 209 20 . . . 124 14 62 58 117 138 38 21 77 538 272 335 41 102 . 21 53 65 312 54 127 122 5 238 3010 6730 1395 . Move 41171 | 102 498 621 954 650 192 453 51 612 725 1331 907 428 1169 790 208 961 1352 290 264 261 1422 68 1103 1037 612 2144 953 2118 873 555 749 10039 550 5264 865 Hop 187 | . . . . . . . . . . . 5 . 9 26 . 15 18 . 4 11 21 . 11 2 2 . . 37 9 2 5 10 . . . Pick Up 349 | 9 10 7 30 2 . . 2 17 9 11 1 2 2 6 1 11 4 1 4 1 8 . 5 1 1 2 . 11 5 5 4 131 1 36 9 Fast Attach 281 | 4 3 1 11 1 . 1 . 3 . 12 12 7 7 11 1 7 4 4 3 1 9 . 5 2 6 19 1 16 9 5 2 78 3 27 6 Attach 123 | 2 . . 6 1 . 2 2 2 4 3 1 1 3 3 . 6 2 1 2 1 3 . 6 3 4 . . 4 1 4 1 33 1 11 10 Detach 42 | . . . . . . . . . . 1 . 1 2 . . 1 1 . . . 1 . 2 2 5 1 . . . 1 . 18 . 4 2 Swap 272 | . 5 10 22 3 . 6 3 13 . 1 2 6 4 1 1 4 15 4 1 3 5 . 4 1 . 11 . 3 4 4 3 66 4 52 11 Drop 488 | . 1 . 33 3 . . 1 20 7 17 5 10 3 10 2 15 6 5 5 1 7 . 8 8 4 22 1 17 13 9 6 182 2 58 7 Fire 1041 | 19 29 39 75 17 . 19 9 68 15 . 4 . . . . . 41 1 1 1 4 . 1 . 4 37 12 3 4 1 . 535 4 74 24 Melee 713 | . . . . . . . . . . 3 36 7 17 25 . 26 31 4 17 5 55 . 23 12 17 4 . 57 20 14 24 133 6 96 81 Ram . | . . . . . . . . . . . . . . . . . . . . . . . . . . . . . . . . . . . . Kick . | . . . . . . . . . . . . . . . . . . . . . . . . . . . . . . . . . . . . Crush 50 | . 14 5 9 6 . 3 . 8 5 . . . . . . . . . . . . . . . . . . . . . . . . . . Escape Stasis 203 | . . . . . . . . . . . . . 20 . . . . . . . 30 . . . . . . . . 1 . 48 . 104 . Rewire 119 | . . . . . . . . . 105 . . . . . . . . . 4 . . . . 8 . . . . . 1 . . . 1 . Trap . | . . . . . . . . . . . . . . . . . . . . . . . . . . . . . . . . . . . . Miscellaneous 43 | . . . . . . . . . . . . . . . . . 32 8 . 3 . . . . . . . . . . . . . . . Route ------- -11/Scrapyard -10/Materials (discovered 6 exits: *Mat x3 / *Min x2 / *Sub) -10/Mines (discovered 3 exits: *Mat x2 / *Sub) -9/Materials (discovered 5 exits: *Mat x3 / *Min x2) -9/Mines (discovered 4 exits: *Mat x2 / *Exi / [*Zio]) -9/Exiles -8/Mines (discovered 2 exits: *Mat x2) -8/Materials (discovered 2 exits: Fac / *Sto) -8/Storage (discovered 2 exits: *Fac / *Rec) -8/Recycling (discovered 2 exits: *Fac / *Scr) -8/Scraptown (discovered 2 exits: *Fac x2) -6/Factory (discovered 2 exits: *Low x2) -6/Waste -6/Factory -5/Factory (discovered 4 exits: *Upp x2 / Ext x2) -5/Waste -5/Factory (discovered 4 exits: Upp x2 / *Ext x2) -5/Extension (discovered 2 exits: *Fac / *Cet) -5/Cetus (discovered 2 exits: *Fac / *Arc) -5/Archives (discovered 3 exits: *Fac / *Hub x2) -5/Hub_04(d) (discovered 4 exits: *Fac x4) -4/Factory (discovered 4 exits: *Res / Upp x2 / Arm) -4/Waste -4/Factory (discovered 3 exits: *Upp x2 / Arm) -4/Upper Caves -4/Upper Caves -4/Warlord -3/Proximity Caves -3/Research (discovered 2 exits: *Tes x2) -3/Testing -2/Research -2/Quarantine (discovered 2 exits: [*Sec] / *Frg) -2/Protoforge -1/Access -1/Command (discovered 3 exits: [*Sur x2] / [*Ac0]) -1/Access_0 Near Former Tau Ceti IV History --------- Turn | Location | Event 5 | -11/Scrapyard | Discovered new exit (range 14) 248 | -11/Scrapyard | Entered Materials 306 | -10/Materials | Build established: Mutant 348 | -10/Materials | Discovered new exit (range 4) 621 | -10/Materials | Discovered new exit (range 16) 862 | -10/Materials | Discovered new exit (range 10) 897 | -10/Materials | Central database locked down 897 | -10/Materials | Central database locked down 1103 | -10/Materials | Discovered new exit (range 14) 1436 | -10/Materials | Discovered new exit (range 10) 1439 | -10/Materials | Identified exit to Subcaves 1479 | -10/Materials | Learned 2 Mines zone layouts 1508 | -10/Materials | Learned location of Storage (-8) 1529 | -10/Materials | Identified exit to Mines 1529 | -10/Materials | Identified exit to Materials 1541 | -10/Materials | Learned Storage emergency access door positions 1581 | -10/Materials | Learned location of 2 exits from Materials 1688 | -10/Materials | Repaired Lgt. Treads 1715 | -10/Materials | Repaired Lgt. Treads 1938 | -10/Materials | Entered Mines 2054 | -10/Mines | Discovered exit to Materials (range 10) 2080 | -10/Mines | Met a Derelict shopkeep closing up shop 2355 | -10/Mines | Excavation squad dispatched 2355 | -10/Mines | A large section of the Mines collapsed 2692 | -10/Mines | Learned Materials emergency access door positions 2704 | -10/Mines | Found a damaged Exp. Sensor Array with a note attached 2711 | -10/Mines | Found Prototype Device 2721 | -10/Mines | Discovered exit to Materials (range 15) 3381 | -10/Mines | Core integrity fell below 50% 3997 | -10/Mines | Discovered exit to Subcaves (range 9) 4111 | -10/Mines | Entered Materials 4111 | -9/Materials | Evolved 2 slots: Propulsion x1, Utility x1 4112 | -9/Materials | Identified exit to Mines 4112 | -9/Materials | Identified exit to Materials 4562 | -9/Materials | Repaired Lgt. Treads 4589 | -9/Materials | Repaired Grenade Launcher 4615 | -9/Materials | Repaired Lgt. Treads 5015 | -9/Materials | Discovered exit to Mines (range 15) 5244 | -9/Materials | Discovered exit to Materials (range 12) 5390 | -9/Materials | Central database locked down 6117 | -9/Materials | Discovered exit to Materials (range 15) 6309 | -9/Materials | Learned location of Mines (-9) 6348 | -9/Materials | Learned location of Zion (-7) 6377 | -9/Materials | Learned location of 1 exit from Storage 6397 | -9/Materials | Learned Materials stockpile data 6406 | -9/Materials | Loaded intel: 2 repair station locations 6454 | -9/Materials | Learned Storage security intel 6943 | -9/Materials | Entered Mines 7102 | -9/Mines | Found a hidden stash of uninstalled traps 7400 | -9/Mines | Discovered exit to Materials (range 9) 7416 | -9/Mines | A Derelict revealed a hidden shortcut to a safe place 7812 | -9/Mines | Assisted by bots powering up and referring to "LRC-V3" 7814 | -9/Mines | Learned Materials terminal intel 8054 | -9/Mines | Received a Rocket Launcher from a helpful Derelict 8080 | -9/Mines | Learned 2 Materials zone layouts 8081 | -9/Mines | Received a Mining Laser from a helpful Derelict 8114 | -9/Mines | Deemed a non-threat by the Exiles lab entrance 8114 | -9/Mines | Discovered new exit (range 5) 8325 | -9/Mines | Discovered exit to Materials (range 5) 8599 | -9/Mines | Entered Exiles 8599 | -9/Exiles | Accompanied by 3 allies 8655 | -9/Exiles | Met 8R-AWN 8700 | -9/Exiles | Met EX-HEX 8794 | -9/Exiles | Met EX-DEC 9039 | -9/Exiles | Discovered new exit (range 10) 9060 | -9/Exiles | Entered Mines 9060 | -8/Mines | Accompanied by 3 allies 9631 | -8/Mines | Discovered exit to Materials (range 7) 9770 | -8/Mines | Discovered exit to Materials (range 4) 9886 | -8/Mines | Build established: Scavenger-Mutant 10218 | -8/Mines | Entered Materials 10218 | -8/Materials | Accompanied by 1 ally 10218 | -8/Materials | Evolved 2 slots: Propulsion x1, Utility x1 10219 | -8/Materials | Identified exit to Storage 10220 | -8/Materials | Identified exit to Factory 10222 | -8/Materials | Loaded intel: 12 terminal locations 10351 | -8/Materials | Destroyed 9 combat bots 10370 | -8/Materials | Entered Storage 10371 | -8/Storage | Identified exit to Recycling 11403 | -8/Storage | Discovered exit to Factory (range 15) 11808 | -8/Storage | Learned location of Recycling (-8) 11874 | -8/Storage | Learned 4 Recycling zone layouts 11930 | -8/Storage | Learned Factory scanalyzer intel 11976 | -8/Storage | Learned 4 Lower Caves zone layouts 12010 | -8/Storage | Learned Storage security intel 12112 | -8/Storage | Learned Factory trap positions 12133 | -8/Storage | Used back door to open Recycling access 12215 | -8/Storage | Learned location of 1 exit from Recycling 12230 | -8/Storage | Entered Recycling 12231 | -8/Recycling | Identified exit to Factory 12232 | -8/Recycling | Identified exit to Scraptown 13039 | -8/Recycling | Scanned before Scraplab entrance 13274 | -8/Recycling | Build established: Commander-Mutant 14100 | -8/Recycling | Entered Scraplab 14139 | -8/Recycling | Entered Scraptown 14139 | -8/Scraptown | Accompanied by 12 allies 15052 | -8/Scraptown | Visited UFD Registry 15052 | -8/Scraptown | Registered with UFD as "Shorttank" 15090 | -8/Scraptown | Visited Shadow of the Wyrm 15315 | -8/Scraptown | Visited Curators Association 15365 | -8/Scraptown | Visited Research Penetration Think Tank 15670 | -8/Scraptown | Visited Scrap Suit Storage 15738 | -8/Scraptown | Visited Abandonware Association 15764 | -8/Scraptown | Learned abandonware demo "ERRANTS.EXE" 15806 | -8/Scraptown | Visited Observation Area 15839 | -8/Scraptown | Visited Scrapoid Pod Storage 15882 | -8/Scraptown | Visited Sword Containment 15978 | -8/Scraptown | Found Prototype Slashing Weapon 15978 | -8/Scraptown | Identified Companion Sword 16335 | -8/Scraptown | Released all parts (10) 16348 | -8/Scraptown | Identified Exp. Sensor Array 16382 | -8/Scraptown | Visited A0-MCA Data Center 16384 | -8/Scraptown | Given a B+ rating by A0-MCA 16509 | -8/Scraptown | Met Optimus 16509 | -8/Scraptown | Accepted into 0bPrime 16529 | -8/Scraptown | Civil war broke out across Scraptown 16538 | -8/Scraptown | Found Surveybot 24 Chip 16567 | -8/Scraptown | Entered Factory 16567 | -6/Factory | Evolved 4 slots: Power x1, Propulsion x1, Utility x2 16568 | -6/Factory | Identified exit to Lower Caves 16569 | -6/Factory | Loaded intel: 73 trap records 16570 | -6/Factory | Loaded intel: 4 scanalyzer locations 16570 | -6/Factory | Loaded intel: 8 recycling unit locations 16578 | -6/Factory | Learned location of Protoforge (-2) 16584 | -6/Factory | Lost 6 allies 17019 | -6/Factory | Manually triggered Chute Trap 17019 | -6/Factory | Sucked down chute 17019 | -6/Factory | Entered Waste 17024 | -6/Waste | Spotted C-40 Crusher 17024 | -6/Waste | Spotted C-40 Crusher 17035 | -6/Waste | Discovered new exit (range 22) 17035 | -6/Waste | Spotted C-40 Crusher 17037 | -6/Waste | Spotted C-40 Crusher 17039 | -6/Waste | Spotted C-40 Crusher 17048 | -6/Waste | Spotted C-40 Crusher 17064 | -6/Waste | Build established: Scavenger-Sprinter 17072 | -6/Waste | Warlord forces began an assault 17089 | -6/Waste | Allies destroyed C-40 Crusher 17089 | -6/Waste | Allies destroyed C-40 Crusher 17091 | -6/Waste | Allies destroyed C-40 Crusher 17097 | -6/Waste | Allies destroyed C-40 Crusher 17133 | -6/Waste | Lost 4 allies 17156 | -6/Waste | Found Broken Exp. Sensor Array 17298 | -6/Waste | Entered Factory 17298 | -6/Factory | Accompanied by 11 allies 17314 | -6/Factory | Loaded intel: 8 recycling unit locations 17399 | -6/Factory | Lost 3 parts (2n1w) 17492 | -6/Factory | Garrison activated, responded to threat 17571 | -6/Factory | Discovered new exit (range 11) 17674 | -6/Factory | Spotted B-75 Beast 17699 | -6/Factory | Build established: Sprinter 17710 | -6/Factory | Fabricated Cld. VTOL Module? 17850 | -6/Factory | Entered another Factory area 17850 | -5/Factory | Evolved 2 slots: Propulsion x1, Utility x1 17856 | -5/Factory | Loaded intel: 8 recycling unit locations 17861 | -5/Factory | Discovered new exit (range 3) 17892 | -5/Factory | Hacking Suite fried by hacking feedback 18073 | -5/Factory | Lost 3 parts (1p2n) 18107 | -5/Factory | Scrapoids reinforcements arrived? 18111 | -5/Factory | P-70 Sage assimilated allied 05F05-D 18114 | -5/Factory | P-70 Sage assimilated allied 05F01-D 18142 | -5/Factory | Identified exit to Upper Caves 18142 | -5/Factory | Identified exit to Extension 18161 | -5/Factory | Lost 3 allies 18236 | -5/Factory | Manually triggered Chute Trap 18236 | -5/Factory | Sucked down chute 18236 | -5/Factory | Entered Waste 18251 | -5/Waste | EMP discharged 18251 | -5/Waste | Spotted C-40 Crusher 18258 | -5/Waste | Spotted C-40 Crusher 18262 | -5/Waste | Spotted C-40 Crusher 18298 | -5/Waste | Spotted C-40 Crusher 18307 | -5/Waste | Spotted C-40 Crusher 18307 | -5/Waste | Spotted C-40 Crusher 18315 | -5/Waste | Discovered new exit (range 12) 18319 | -5/Waste | System corruption reached 10% 18323 | -5/Waste | Identified exit to Factory 18323 | -5/Waste | Entered Factory 18336 | -5/Factory | Loaded intel: 8 recycling unit locations 18378 | -5/Factory | Watched by a mysterious "MATRIX" hacker. 18408 | -5/Factory | Fabricated Cld. VTOL Module? 18487 | -5/Factory | Repaired Exp. Cesium-ion Thruster? 18564 | -5/Factory | Repaired ECM Suite? 18793 | -5/Factory | Entered Extension 18806 | -5/Extension | Rescued a captive Derelict 18806 | -5/Extension | Rescued a captive Derelict 18820 | -5/Extension | Build established: Hacker-Scout 18864 | -5/Extension | Rescued A7 19007 | -5/Extension | Rescued a captive Derelict 19030 | -5/Extension | Lost 6 allies 19271 | -5/Extension | Build established: Commander-Scout 19386 | -5/Extension | Spotted B-75 Beast 19388 | -5/Extension | Spotted B-75 Beast 19419 | -5/Extension | Allies destroyed B-75 Beast 19430 | -5/Extension | Allies destroyed B-75 Beast 19460 | -5/Extension | Lost 6 allies 19494 | -5/Extension | Rescued a captive Derelict 19494 | -5/Extension | Rescued a captive Derelict 19518 | -5/Extension | Rescued a captive Derelict 19758 | -5/Extension | Rescued a captive Derelict 19759 | -5/Extension | Rescued a captive Derelict 19817 | -5/Extension | Rescued a captive Derelict 19850 | -5/Extension | Discovered new exit (range 10) 19850 | -5/Extension | Discovered new exit (range 6) 19852 | -5/Extension | Identified exit to Cetus 19876 | -5/Extension | Identified exit to Factory 19926 | -5/Extension | Entered Cetus 19926 | -5/Cetus | Accompanied by 14 allies (A7) 19931 | -5/Cetus | Acquired a Cetus Manufacturing Module code from A7 19959 | -5/Cetus | Spotted Cetus Guard 19960 | -5/Cetus | Spotted Cetus Guard 19965 | -5/Cetus | Spotted Cetus Guard 19973 | -5/Cetus | Allies destroyed Cetus Guard 19976 | -5/Cetus | Spotted Cetus Guard 19978 | -5/Cetus | Allies destroyed Cetus Guard 19980 | -5/Cetus | Allies destroyed Cetus Guard 19996 | -5/Cetus | Allies destroyed Cetus Guard 20007 | -5/Cetus | Started Cetus Manufacturing Module 20032 | -5/Cetus | Manufactured an Enhanced Grunt 20056 | -5/Cetus | Escorted A7 to Cetus Mainframe 20057 | -5/Cetus | Manufactured an Enhanced Grunt 20063 | -5/Cetus | Discovered new exit (range 21) 20082 | -5/Cetus | Manufactured an Enhanced Grunt 20086 | -5/Cetus | Build established: Commander-Ninja 20107 | -5/Cetus | Manufactured an Enhanced Grunt 20132 | -5/Cetus | Manufactured an Enhanced Grunt 20175 | -5/Cetus | Spotted Cetus Guard 20176 | -5/Cetus | Spotted Cetus Guard 20176 | -5/Cetus | Spotted Cetus Guard 20176 | -5/Cetus | Spotted Cetus Guard 20188 | -5/Cetus | Allies destroyed Cetus Guard 20192 | -5/Cetus | Allies destroyed Cetus Guard 20195 | -5/Cetus | Allies destroyed Cetus Guard 20195 | -5/Cetus | Murdered A7 20197 | -5/Cetus | Extracted ID and sensor layout for unrecognized location from A7's data core 20204 | -5/Cetus | Discovered exit to Factory (range 21) 20206 | -5/Cetus | Allies destroyed Cetus Guard 20212 | -5/Cetus | Met Revision 17 20227 | -5/Cetus | Identified exit to Archives 20308 | -5/Cetus | Entered Archives 20308 | -5/Archives | Accompanied by 14 allies 20339 | -5/Archives | Discovered exit to Factory (range 13) 20360 | -5/Archives | Discovered new exit (range 14) 20373 | -5/Archives | Identified exit to Hub_04(d) 20439 | -5/Archives | Discovered exit to Hub_04(d) (range 22) 20763 | -5/Archives | Entered Hub_04(d) 20763 | -5/Hub_04(d) | Accompanied by 10 allies 20827 | -5/Hub_04(d) | Garrison activated, responded to threat 20837 | -5/Hub_04(d) | Garrison activated, responded to threat 20862 | -5/Hub_04(d) | Lost 6 allies 20869 | -5/Hub_04(d) | Network Hub disabled 20878 | -5/Hub_04(d) | Spotted Lightning 20878 | -5/Hub_04(d) | Spotted Lightning 20878 | -5/Hub_04(d) | Spotted Lightning 20878 | -5/Hub_04(d) | Spotted Lightning 20885 | -5/Hub_04(d) | Spotted Lightning 20885 | -5/Hub_04(d) | Spotted Lightning 20887 | -5/Hub_04(d) | Spotted Lightning 20892 | -5/Hub_04(d) | Spotted Lightning 20894 | -5/Hub_04(d) | Entered Factory 20894 | -4/Factory | Evolved 2 slots: Utility x2 20913 | -4/Factory | Spotted B-86 Titan 20920 | -4/Factory | Lost 3 parts (2n1w) 20986 | -4/Factory | Fabricated Cld. VTOL Module? 20991 | -4/Factory | Discovered new exit (range 22) 21027 | -4/Factory | Identified exit to Upper Caves 21027 | -4/Factory | Identified exit to Armory 21064 | -4/Factory | Fabricated Cld. VTOL Module (x1) 21108 | -4/Factory | Loaded intel: 8 recycling unit locations 21138 | -4/Factory | Build established: Hacker-Scout 21394 | -4/Factory | Search patrols dispatched 21473 | -4/Factory | Identified exit to Research 21508 | -4/Factory | Manually triggered Chute Trap 21508 | -4/Factory | Sucked down chute 21508 | -4/Factory | Entered Waste 21510 | -4/Waste | Spotted C-40 Crusher 21510 | -4/Waste | Spotted C-40 Crusher 21511 | -4/Waste | Spotted C-40 Crusher 21512 | -4/Waste | Spotted C-40 Crusher 21512 | -4/Waste | Spotted C-40 Crusher 21520 | -4/Waste | Spotted C-40 Crusher 21520 | -4/Waste | Discovered new exit (range 10) 21522 | -4/Waste | Identified exit to Factory 21522 | -4/Waste | Entered Factory 21533 | -4/Factory | Discovered exit to Upper Caves (range 19) 21570 | -4/Factory | Repaired Exp. Cesium-ion Thruster 21584 | -4/Factory | Spotted B-86 Titan 21606 | -4/Factory | Central database locked down 21652 | -4/Factory | Repaired Imp. Remote Datajack? 21668 | -4/Factory | Loaded intel: 8 recycling unit locations 21772 | -4/Factory | First assault squad dispatched 21869 | -4/Factory | Entered Upper Caves 22042 | -4/Upper Caves | Attracted the attention of an 0b10 outpost 22146 | -4/Upper Caves | Learned location of Quarantine (-2) 22153 | -4/Upper Caves | Discovered new exit (range 9) 22236 | -4/Upper Caves | Identified exit to Upper Caves 22236 | -4/Upper Caves | Entered another Upper Caves area 22418 | -4/Upper Caves | Learned Research terminal intel 22479 | -4/Upper Caves | Discovered new exit (range 5) 22504 | -4/Upper Caves | Identified exit to Warlord 22505 | -4/Upper Caves | Entered Warlord 22512 | -4/Warlord | System corruption cleaned by Quarantine Array 22521 | -4/Warlord | Build established: Hacker-Sprinter 22589 | -4/Warlord | Visited the Vortex Lab 22589 | -4/Warlord | Found Prototype Energy Cannon 22589 | -4/Warlord | Identified Vortex Cannon 22598 | -4/Warlord | Warlord's base attacked by MAIN.C 22629 | -4/Warlord | Found Prototype Device 22629 | -4/Warlord | Identified System Purifier 22634 | -4/Warlord | Found Prototype Processor 22634 | -4/Warlord | Identified Exp. Targeting Computer 22637 | -4/Warlord | Found Prototype Hackware 22637 | -4/Warlord | Identified Ghost Barrier 22684 | -4/Warlord | Rebuked by Warlord 22773 | -4/Warlord | Found Vortex Cannon 22948 | -4/Warlord | Warlord forces counterattacked 22990 | -4/Warlord | Spotted Executioner 23008 | -4/Warlord | Spotted Striker 23019 | -4/Warlord | Spotted Striker 23085 | -4/Warlord | Lost 11 allies 23147 | -4/Warlord | Spotted Striker 23200 | -4/Warlord | Lost 11 allies 23213 | -4/Warlord | Spotted Striker 23215 | -4/Warlord | Destroyed 10 combat bots 23273 | -4/Warlord | Warlord base infiltrated, sounded retreat 23274 | -4/Warlord | Spotted Striker 23289 | -4/Warlord | Spotted Executioner 23329 | -4/Warlord | Lost 7 allies 23343 | -4/Warlord | Spotted Striker 23365 | -4/Warlord | Spotted Striker 23386 | -4/Warlord | Attacked by Warlord forces 23391 | -4/Warlord | Discovered new exit (range 12) 23404 | -4/Warlord | Identified exit to Proximity Caves 23404 | -4/Warlord | Entered Proximity Caves 23559 | -3/Proximity Caves | Discovered exit to Research (range 5) 23706 | -3/Proximity Caves | Entered Research 23706 | -3/Research | Evolved 2 slots: Utility x2 23707 | -3/Research | Loaded intel: 22 terminal locations 23773 | -3/Research | Discovered new exit (range 23) 23785 | -3/Research | Spotted B-86 Titan 23816 | -3/Research | Repaired Cld. Impulse Thruster 23852 | -3/Research | Repaired Cld. VTOL Module 23888 | -3/Research | Repaired Cld. VTOL Module? 23906 | -3/Research | Revision forces began assault on 0b10 23930 | -3/Research | Identified exit to Testing 23945 | -3/Research | Loaded intel: 5 recycling unit locations 24059 | -3/Research | Met up with Revision 17++ 24091 | -3/Research | Targeted by mysterious "MATRIX" hacker. 24159 | -3/Research | Fabricated Cld. Impulse Thruster (x1) 24204 | -3/Research | Fabricated Cld. Impulse Thruster (x1) 24288 | -3/Research | Lost 3 allies 24308 | -3/Research | Fabricated Exp. Utility Shielding? 24406 | -3/Research | Research terminal network offline 24497 | -3/Research | Entered Testing 24498 | -3/Testing | Spotted PP-5C78I9T4KI 24510 | -3/Testing | Found Prototype Device 24510 | -3/Testing | Identified 2N-1CE's Frost Array 24663 | -3/Testing | Repaired Exp. Cesium-ion Thruster? 24677 | -3/Testing | Discovered new exit (range 4) 24677 | -3/Testing | Identified exit to Research 24697 | -3/Testing | Found Prototype Device 24697 | -3/Testing | Identified AEGIS Remote Shield 24872 | -3/Testing | Build established: Hacker-Ninja 24882 | -3/Testing | Entered Research 24882 | -2/Research | Evolved 2 slots: Power x1, Propulsion x1 24925 | -2/Research | Found Prototype Launcher 24925 | -2/Research | Identified Ragnarok Missile Launcher 25034 | -2/Research | Discovered new exit (range 18) 25034 | -2/Research | Spotted B-90 Cyclops 25039 | -2/Research | Identified exit to Quarantine 25039 | -2/Research | Entered Quarantine 25040 | -2/Quarantine | Forged Quantum Companion 25257 | -2/Quarantine | Cryocooling Duct disabled 25272 | -2/Quarantine | Ambient heat levels rising (+20) 25272 | -2/Quarantine | Non-combat units ordered to evacuate 25289 | -2/Quarantine | Search patrols dispatched 25301 | -2/Quarantine | Found Alien Artifact 25316 | -2/Quarantine | Spotted Fortress 25322 | -2/Quarantine | Build established: Hacker-Scout 25328 | -2/Quarantine | Discovered new exit (range 5) 25328 | -2/Quarantine | Discovered new exit (range 6) 25477 | -2/Quarantine | Identified exit to Protoforge 25477 | -2/Quarantine | Entered Protoforge 25479 | -2/Protoforge | Spotted Hotshot 25487 | -2/Protoforge | Spotted Hotshot 25487 | -2/Protoforge | Spotted Hotshot 25508 | -2/Protoforge | Spotted Hotshot 25604 | -2/Protoforge | Superfortress began startup sequence 25645 | -2/Protoforge | UFD initiated attack on Protoforge (Readiness: Adequate) 25645 | -2/Protoforge | Loaded intel: 3 recycling unit locations 25661 | -2/Protoforge | Identified Subatomic Replicator 25661 | -2/Protoforge | Forged Prototype Slashing Weapon 25681 | -2/Protoforge | Optimus greeted in Protoforge 25683 | -2/Protoforge | Found Prototype Processor 25683 | -2/Protoforge | Identified Exp. Core Analyzer 25685 | -2/Protoforge | Found Exp. Core Analyzer 25692 | -2/Protoforge | Spotted Decapitator 25693 | -2/Protoforge | Spotted Decapitator 25743 | -2/Protoforge | Forge Plexus network access discovered 25757 | -2/Protoforge | Spotted Decapitator 25798 | -2/Protoforge | Lost 3 allies 25967 | -2/Protoforge | Spotted Striker 26102 | -2/Protoforge | Spotted Executioner 26136 | -2/Protoforge | Lost 13 allies 26193 | -2/Protoforge | Spotted Executioner 26314 | -2/Protoforge | Lost 3 allies 26418 | -2/Protoforge | UFD reported confirmed Drillbomb installation 26683 | -2/Protoforge | Spotted Immortal 26684 | -2/Protoforge | Spotted Overlord 26684 | -2/Protoforge | Spotted Immortal 26684 | -2/Protoforge | Spotted Immortal 26795 | -2/Protoforge | Found Prototype Processor 26797 | -2/Protoforge | Found Prototype Device 26797 | -2/Protoforge | Identified Exp. Cloaking Device 26840 | -2/Protoforge | Spotted Immortal 26840 | -2/Protoforge | Spotted Immortal 26850 | -2/Protoforge | Spotted Striker 26853 | -2/Protoforge | Spotted Striker 26874 | -2/Protoforge | Found Prototype Device 26882 | -2/Protoforge | Spotted Executioner 26883 | -2/Protoforge | Spotted Striker 26906 | -2/Protoforge | Lost 7 allies 26916 | -2/Protoforge | Spotted Hotshot 26976 | -2/Protoforge | Build established: Scavenger-Scout 26980 | -2/Protoforge | Spotted Hotshot 26981 | -2/Protoforge | Spotted Hotshot 26981 | -2/Protoforge | Spotted Hotshot 26985 | -2/Protoforge | Destroyed Hotshot 26987 | -2/Protoforge | Destroyed Hotshot 26987 | -2/Protoforge | Destroyed Hotshot 26993 | -2/Protoforge | Destroyed Hotshot 27087 | -2/Protoforge | Identified Cep. Antimissile System 27097 | -2/Protoforge | Found Exp. Terror Saw 27098 | -2/Protoforge | Found Cep. Lightning Penetrator 27102 | -2/Protoforge | Found Faulty Cep. Helical Railcannon 27116 | -2/Protoforge | Spotted Decapitator 27116 | -2/Protoforge | Spotted Decapitator 27116 | -2/Protoforge | Spotted Decapitator 27272 | -2/Protoforge | Spotted Executioner 27274 | -2/Protoforge | Destroyed Executioner 27279 | -2/Protoforge | Spotted Executioner 27281 | -2/Protoforge | Destroyed Executioner 27347 | -2/Protoforge | Found Crosscalibrator 27348 | -2/Protoforge | Spotted Immortal 27348 | -2/Protoforge | Spotted Immortal 27370 | -2/Protoforge | Destroyed Immortal 27382 | -2/Protoforge | Destroyed Immortal 27389 | -2/Protoforge | Spotted Decapitator 27389 | -2/Protoforge | Spotted Decapitator 27389 | -2/Protoforge | Spotted Decapitator 27389 | -2/Protoforge | Spotted Decapitator 27391 | -2/Protoforge | Destroyed Decapitator 27391 | -2/Protoforge | Destroyed Decapitator 27392 | -2/Protoforge | Destroyed Decapitator 27653 | -2/Protoforge | UFD reported confirmed Drillbomb installation 27951 | -2/Protoforge | Destroyed Decapitator 27955 | -2/Protoforge | Destroyed Decapitator 27958 | -2/Protoforge | Destroyed Decapitator 27999 | -2/Protoforge | Spotted Immortal 27999 | -2/Protoforge | Spotted Immortal 28040 | -2/Protoforge | Destroyed Immortal 28048 | -2/Protoforge | Destroyed Immortal 28084 | -2/Protoforge | Found Cep. Plasma Driver 28241 | -2/Protoforge | Destroyed V266-c 28576 | -2/Protoforge | Destroyed V037-i 28602 | -2/Protoforge | Found Cep. Gyrokinetic System 28603 | -2/Protoforge | Found Cep. Combat Aerolev Unit 28604 | -2/Protoforge | Found Faulty Cep. Gyrokinetic System 28605 | -2/Protoforge | Spotted V330-z 28636 | -2/Protoforge | Spotted V259-i 28636 | -2/Protoforge | Spotted V285-e 28646 | -2/Protoforge | Found Cep. Gyrokinetic System 28647 | -2/Protoforge | Found Faulty Cep. Gyrokinetic System 28673 | -2/Protoforge | Spotted Executioner 28727 | -2/Protoforge | Destroyed V330-z 28729 | -2/Protoforge | Destroyed V285-e 28734 | -2/Protoforge | Found Prototype Device 28734 | -2/Protoforge | Identified Exp. Shock Absorption System 28738 | -2/Protoforge | Found Prototype Processor 28738 | -2/Protoforge | Identified Exp. Armor Integrity Analyzer 28740 | -2/Protoforge | Found Exp. Core Analyzer 28753 | -2/Protoforge | Lost 6 parts (2p3n1u) 28782 | -2/Protoforge | Found Cep. RG22 Armor 28801 | -2/Protoforge | Found Cep. Gyrokinetic System 28804 | -2/Protoforge | Found Prototype Storage 28873 | -2/Protoforge | UFD reported confirmed Drillbomb installation 28907 | -2/Protoforge | UFD reported confirmed Drillbomb installation 28973 | -2/Protoforge | System corruption reached 10% 29256 | -2/Protoforge | Found Exp. Terror Saw 29268 | -2/Protoforge | Found Faulty Cep. RG22 Armor 29332 | -2/Protoforge | Found Cep. Zero-point Core 29335 | -2/Protoforge | Found Cep. Zero-point Core 29386 | -2/Protoforge | Found Faulty Cep. Heavy Railcannon 29388 | -2/Protoforge | Found Cep. XC Strikerail 29408 | -2/Protoforge | Build established: Scavenger-Mutant 29464 | -2/Protoforge | Found Prototype Storage 29464 | -2/Protoforge | Identified Cep. Chromion Battery 29468 | -2/Protoforge | Found Cep. Antigrav Storage Unit 29475 | -2/Protoforge | Found Cep. Matter Streamer 29510 | -2/Protoforge | Found Faulty Cep. RG22 Armor 29689 | -2/Protoforge | UFD reported confirmed Drillbomb installation 29706 | -2/Protoforge | Found Cep. Lightning Penetrator 29732 | -2/Protoforge | Additional patrols dispatched to research labs 29734 | -2/Protoforge | Found Transdimensional Reconstructor 29737 | -2/Protoforge | UFD reported confirmed Drillbomb installation 29740 | -2/Protoforge | Found Cep. Navigation Harness 30047 | -2/Protoforge | Build established: Scavenger-Scout 30241 | -2/Protoforge | Spotted AP7-3 30248 | -2/Protoforge | Spotted AP7-3 30267 | -2/Protoforge | Destroyed AP7-3 30281 | -2/Protoforge | Core integrity fell below 50% 30286 | -2/Protoforge | Destroyed AP7-3 30351 | -2/Protoforge | Found Exp. Jetlance 30359 | -2/Protoforge | Found Faulty Cep. Deflector Sword 30360 | -2/Protoforge | Found Faulty Cep. Deflector Sword 30397 | -2/Protoforge | Found Prototype Device 30399 | -2/Protoforge | Found Prototype Device 30400 | -2/Protoforge | Found Prototype Device 30402 | -2/Protoforge | Found Prototype Device 30546 | -2/Protoforge | Build established: Scavenger-Mutant 30585 | -2/Protoforge | Found Prototype Device 30586 | -2/Protoforge | Identified Exp. Force Field 30588 | -2/Protoforge | Found Exp. Force Field 30611 | -2/Protoforge | Found Cep. NT7 Matterbank 30612 | -2/Protoforge | Found Cep. Chromion Battery 30766 | -2/Protoforge | Found Cep. Weapon Articulator 30770 | -2/Protoforge | Found Exp. Kinecellerator 30774 | -2/Protoforge | Spotted V123-p 30793 | -2/Protoforge | Spotted V447-p 30793 | -2/Protoforge | Spotted V467-f 30797 | -2/Protoforge | Found Femtoactuators 30798 | -2/Protoforge | Found Cep. Melee Reflex Suite 30799 | -2/Protoforge | Found Cep. Recoil Nullifier 30801 | -2/Protoforge | Found Faulty Cep. Recoil Nullifier 30802 | -2/Protoforge | Found Cep. Networked Targeting System 30804 | -2/Protoforge | Found Faulty Mni. Quantum Capacitor 30806 | -2/Protoforge | Found Exp. Kinecellerator 30807 | -2/Protoforge | Found Cep. Melee Reflex Suite 30840 | -2/Protoforge | Destroyed V467-f 30840 | -2/Protoforge | Destroyed V447-p 30858 | -2/Protoforge | Destroyed V123-p 30861 | -2/Protoforge | Found Prototype Device 30861 | -2/Protoforge | Identified Adv. Particle Accelerator 30864 | -2/Protoforge | Found Prototype Device 30864 | -2/Protoforge | Identified Exp. Weapon Cycler 30869 | -2/Protoforge | Found Prototype Protection 30869 | -2/Protoforge | Identified Centrium Heavy Armor Plating 30883 | -2/Protoforge | Found Cep. Gyrokinetic System 30888 | -2/Protoforge | Found Prototype Processor 30889 | -2/Protoforge | Identified Exp. Target Analyzer 30893 | -2/Protoforge | Found Cep. Combat Aerolev Unit 30896 | -2/Protoforge | Found Cep. Combat Aerolev Unit 30902 | -2/Protoforge | Found Cep. Weapon Articulator 30935 | -2/Protoforge | Identified Cep. Cloak Mesh 30938 | -2/Protoforge | Identified Cep. Impact Drone Bay 31076 | -2/Protoforge | Spotted Striker 31231 | -2/Protoforge | Found Cep. NT7 Matterbank 31233 | -2/Protoforge | Found Cep. NT7 Matterbank 31308 | -2/Protoforge | Found Faulty Cep. Rapid Grenade Launcher 31309 | -2/Protoforge | Found Cep. Tactical Fusion Warhead 31311 | -2/Protoforge | Spotted V031-h 31311 | -2/Protoforge | Spotted V833-i 31311 | -2/Protoforge | Spotted V932-s 31311 | -2/Protoforge | Spotted V867-p 31312 | -2/Protoforge | Found Faulty Cep. Rapid Grenade Launcher 31313 | -2/Protoforge | Found Cep. EMP Blanket Launcher 31688 | -2/Protoforge | Found Faulty Cep. Zero-point Core 31753 | -2/Protoforge | Destroyed Striker 31891 | -2/Protoforge | Found Prototype Processor 31891 | -2/Protoforge | Identified Cep. Projectile Intercept Suite 31897 | -2/Protoforge | Found Cep. Projectile Intercept Suite 31965 | -2/Protoforge | Identified Exp. Melee Analysis Suite 32090 | -2/Protoforge | Found Exp. Jetlance 32273 | -2/Protoforge | Build established: Scavenger-Gladiator 32309 | -2/Protoforge | Spotted Striker 32851 | -2/Protoforge | Lost 4 allies 32861 | -2/Protoforge | Build established: Scavenger-Mutant 32957 | -2/Protoforge | Spotted Striker 32961 | -2/Protoforge | Spotted Striker 32975 | -2/Protoforge | UFD reported confirmed Drillbomb installation 33037 | -2/Protoforge | Discovered new exit (range 11) 33073 | -2/Protoforge | UFD reported confirmed Drillbomb installation 33106 | -2/Protoforge | Spotted Striker 33107 | -2/Protoforge | Spotted Striker 33115 | -2/Protoforge | Entered Access 33115 | -1/Access | Evolved 2 slots: Utility x1, Weapon x1 33133 | -1/Access | Spotted Executioner 33189 | -1/Access | Unchained authorized (GL-D0S) 33248 | -1/Access | Build established: Scavenger-Gladiator 33332 | -1/Access | Discovered new exit (range 7) 33365 | -1/Access | First assault squad dispatched 40075 | -1/Access | Entered Command 40393 | -1/Command | Spotted Executioner 40393 | -1/Command | Spotted Executioner 40470 | -1/Command | Spotted Striker 40489 | -1/Command | Spotted Striker 40499 | -1/Command | Destroyed Striker 40512 | -1/Command | Destroyed Striker 40635 | -1/Command | Destroyed 7 combat bots 40649 | -1/Command | Destroyed Executioner 40651 | -1/Command | Destroyed Executioner 40710 | -1/Command | Spotted Combat Programmer 40722 | -1/Command | Spotted Combat Programmer 40724 | -1/Command | Destroyed Combat Programmer 40749 | -1/Command | Spotted M Guard 40750 | -1/Command | Spotted M Guard 40764 | -1/Command | Destroyed M Guard 40765 | -1/Command | Destroyed M Guard 40784 | -1/Command | Found Corrupted Prototype Reactor 40785 | -1/Command | Destroyed Combat Programmer 40785 | -1/Command | All MAIN.C guards destroyed 40787 | -1/Command | Found Corrupted AEGIS Remote Shield 40792 | -1/Command | Found Corrupted AEGIS Remote Shield 40797 | -1/Command | Found Corrupted Prototype Protection 40797 | -1/Command | Identified Hvy. Regenerative Plating 40798 | -1/Command | System corruption reached 10% 40814 | -1/Command | Found Corrupted Prototype Device 40825 | -1/Command | First assault squad dispatched 40865 | -1/Command | Met MAIN.C 40869 | -1/Command | 0b10 Conduit disabled 40890 | -1/Command | Allies destroyed MAIN.C Shell 40890 | -1/Command | MAIN.C activated Command garrisons 40909 | -1/Command | Destroyed MAIN.C 40910 | -1/Command | Identified Zero-point Reactor 40910 | -1/Command | Identified Thermal Barrier 40910 | -1/Command | Discovered new exit (range 25) 40910 | -1/Command | Discovered new exit (range 117) 40910 | -1/Command | Extracted map data and part IDs from MAIN.C's data core 40927 | -1/Command | Spotted B-99 Colossus 40937 | -1/Command | Lost 3 allies 41119 | -1/Command | Found Exp. System Purifier 43096 | -1/Command | Phase Generator disabled 43933 | -1/Command | Found Exp. Phase Shifter 43935 | -1/Command | Found Thermal Barrier 44716 | -1/Command | Found Zero-point Reactor 44780 | -1/Command | Warped through subspace to slip node 44780 | -1/Command | Discovered new exit (range 5) 44793 | -1/Command | Entered Access_0 44795 | -1/Access_0 | Met Architect 44799 | -1/Access_0 | Destroyed A8 44804 | -1/Access_0 | Architect warped through subspace 44839 | -1/Access_0 | Architect warped through subspace 44884 | -1/Access_0 | Architect warped through subspace 44917 | -1/Access_0 | Architect warped through subspace 44976 | -1/Access_0 | Architect warped through subspace 44980 | -1/Access_0 | A6 warped into view 44984 | -1/Access_0 | Destroyed A6 44987 | -1/Access_0 | Found Corrupted Exp. Actuator Array 45009 | -1/Access_0 | Subspace Access Node disabled 45018 | -1/Access_0 | Architect warped through subspace 45054 | -1/Access_0 | Architect warped through subspace 45074 | -1/Access_0 | Architect warped through subspace 45094 | -1/Access_0 | Subspace Access Node disabled 45098 | -1/Access_0 | Architect warped through subspace 45111 | -1/Access_0 | Architect warped through subspace 45144 | -1/Access_0 | Architect warped through subspace 45152 | -1/Access_0 | Subspace Access Node disabled 45187 | -1/Access_0 | Architect warped through subspace 45209 | -1/Access_0 | Architect warped through subspace 45234 | -1/Access_0 | Architect warped through subspace 45251 | -1/Access_0 | Found Exp. Powered Armor 45253 | -1/Access_0 | A5 warped into view 45253 | -1/Access_0 | Found Exp. Powered Armor 45269 | -1/Access_0 | Destroyed A5 45273 | -1/Access_0 | Architect warped through subspace 45281 | -1/Access_0 | Subspace Access Node disabled 45290 | -1/Access_0 | Destroyed 7 combat bots 45309 | -1/Access_0 | Lost 5 parts (1p1n3u) 45325 | -1/Access_0 | Destroyed Architect 45326 | -1/Access_0 | Architect triggered a singularity event 45328 | -1/Access_0 | Extracted unknown sensor trigger ID from Architect's data core 45330 | -1/Access_0 | Found Prototype Protection 45333 | -1/Access_0 | Found Hpw. Transdimensional Reconstructor 45333 | -1/Access_0 | Warped through subspace to slip node 45333 | -1/Access_0 | Discovered new exit (range 8) 45334 | -1/Access_0 | Core integrity fell below 50% 45336 | *** | Escaped singularity! Last Messages --------------- Superquantum Companion: "Good times." Superquantum Companion: "Spicy times." 45326_ A0_COM: Initiating irreversible singularity event. Goodbye. 45327_ A0_COM: 10. 45327_ Acquired 139 matter. 45328_ A0_COM: 9. 45328_ Acquired data core, extracted unknown sensor trigger ID. 45329_ A0_COM: 8. 45330_ A0_COM: 7. 45330_ Acquired Prototype Protection. 45331_ A0_COM: 6. 45332_ A0_COM: 5. 45332_ Dropped Hvy. Regenerative Plating. 45333_ A0_COM: 4. 45333_ Acquired Hpw. Transdimensional Reconstructor. 45333_ Warped through subspace, drawn to slip node. 45333_ EXIT=FOUND 45334_ A0_COM: 3. 45335_ A0_COM: 2. 45336_ A0_COM: 1. Map ----- +----------------------------------------------------+ | | | | | | | | | | | | | | | | | | | | | | | | | | | | | | | | | ?????????????????????????????????????????????????? | | ?????????????????????????????????????????????????? | | ?????????????????????????????????????????????????? | | ?????????????????????????????????????????????????? | | ?????????????????????????????????????????????????? | | ?????????????????????????????????????????????????? | | ????????????????????????###??????????????????????? | | ???????????????????????## ##?????????????????????? | | ???????????????????????# #?????????????????????? | | ???????????????????????# @ #?????????????????????? | | ??????????????????????## #?????????????????????? | | ??????????????????????# #?????????????????????? | | ??????????????????????# ##?????????????????????? | | ??????????????????????## #?????????????????????? | | ??????????????????????# #?????????????????????? | | ??????????????????????# ##?????????????????????? | | ??????????????????????# < #?????????????????????? | | ??????????????????????# ##?????????????????????? | | ??????????????????????## #??????????????????????? | | ???????????????????????####??????????????????????? | | ?????????????????????????????????????????????????? | | ?????????????????????????????????????????????????? | | ?????????????????????????????????????????????????? | | ?????????????????????????????????????????????????? | | ?????????????????????????????????????????????????? | | ?????????????????????????????????????????????????? | | ?????????????????????????????????????????????????? | | ?????????????????????????????????????????????????? | | ?????????????????????????????????????????????????? | | ?????????????????????????????????????????????????? | | ?????????????????????????????????????????????????? | | ?????????????????????????????????????????????????? | | ?????????????????????????????????????????????????? | | ?????????????????????????????????????????????????? | +----------------------------------------------------+ Best States ------------- Heat Dissipation 149 Coolant Potential 120 Energy Generation 114 Energy Capacity 2490 Matter Stores 300 Matter Capacity 300 Sight Range 23 Robot Scan Range 20 Terrain Scan Range 16 Terrain Scan Density 2010 ECM Strength 2 Cloak Strength 6 Power Amplification 30 Additional Mass Support 16 Armor Coverage 1000 Resistance: EX 50 Propulsion Shielding 66 Utility Shielding 90 Point Defense Rating 80 Projectile Deflection 15 Melee Speed Boost 50 Phase Shifting 20 Evasion (%) 91 Targeting Accuracy 30 Melee Accuracy 12 Target Analysis 10 Core Analysis 8 Armor Integrity Analysis 50 Recoil Reduction 4 Offensive Hacking 50 Authchip Count 4 Item Schematics ----------------- Hcp. Storage Unit | -10/Materials | Hacked Lrg. Storage Unit | -8/Storage | Hacked Cld. VTOL Module | -6/Factory | Hacked Lrn. Missile Launcher | -5/Factory | Hacked Exp. Propulsion Shielding | -4/Factory | Hacked Cld. Impulse Thruster | -3/Research | Scanalyzed Exp. Utility Shielding | -3/Research | Hacked Cld. Antigrav System | -2/Protoforge | Archive Smartbomb Launcher | -2/Protoforge | Archive Helical Railgun | -2/Protoforge | Archive Robot Schematics ------------------ M-13 Machinist | -8/Recycling | Hacked E-15 Imp | -2/Protoforge | Archive Fabricated ------------ Cld. VTOL Module | x1 | -6/Factory | Authchip Cld. VTOL Module | x1 | -5/Factory | Authchip Cld. VTOL Module | x1 | -4/Factory | Authchip Cld. VTOL Module | x1 | -4/Factory | Authchip Cld. Impulse Thruster | x1 | -3/Research | Authchip Cld. Impulse Thruster | x1 | -3/Research | Authchip Exp. Utility Shielding | x1 | -3/Research Repaired ---------- Lgt. Treads | 45% | -10/Materials Lgt. Treads | 54% | -10/Materials Lgt. Treads | 34% | -9/Materials Grenade Launcher | 16% | -9/Materials Lgt. Treads | 58% | -9/Materials Exp. Cesium-ion Thruster | 57% | -5/Factory ECM Suite | 35% | -5/Factory Exp. Cesium-ion Thruster | 7% | -4/Factory Imp. Remote Datajack | 13% | -4/Factory Cld. Impulse Thruster | 20% | -3/Research Cld. VTOL Module | 50% | -3/Research Cld. VTOL Module | 50% | -3/Research Exp. Cesium-ion Thruster | 50% | -3/Testing Studied --------- Grenade Launcher | -9/Materials | Hacked Impulse Thruster | -4/Factory | Hacked Mic. Antimatter Reactor | -3/Research | Hacked Alien Tech Used ----------------- Subatomic Replicator Transdimensional Reconstructor High-powered Transdimensional Reconstructor Achievements -------------- Martial Artist Professional Mechanic Challenges ------------ None Game ------ Seed SpliceCargoBeacon Manual? 0 Play Time 09:06:00 Cumulative 415.9 hours Start 2026.04.16 @ 22:11:09 End 2026.04.20 @ 04:37:29 Sessions 7 Manual Loads 0 Difficulty Rogue Special Mode None Game No. 156 Rogue 155 Adventurer 1 Explorer 0 Win Type 6 Total 16 Types 6/2/2/0/1/0/3/1/0/1 Lore% 63 Gallery% 81 Achievement% 71 Wizard Run 0 Options --------- Layout 0 ASCII 0 Keyboard 0 Movement Arrows Keybinds 0 Fullscreen 2 Font 24/Smallcaps Map View 76x50 Zoom Use 0% Tactical HUD 1 Map Filters NONE Filters NONE Steam 1 RUN: 8e094c32-7193-44d6-a20e-1fbc22861e6d